Workbook

Sheet 1. Information Sheet
U1: a | AA1: =IF(OR(F16="", F16="(if applicable)"), F14, F14 & " - " & F16) -> Algoma Power Inc.
A12: Note: Depending on the selections made below, certain worksheets in this workbook will be hidden. | M12: Version | N12: 4.2
E14: Utility Name | F14: Algoma Power Inc.
E18: Assigned EB Number | F18: EB-2019-0019 (Prospective Model for IRR Responses)
E20: Name of Contact and Title | F20: Greg Beharriell; Manager, Regulatory Affairs
E22: Phone Number | F22: 905-871-0330; x3278
E24: Email Address | F24: regulatoryaffairs@fortisontario.com
A26: Is this Capital Module being filed in a CoS or Price-Cap IR Application? | F26: Price-Cap IR | J26: Rate Year | K26: 2021
A28: ="Indicate the Price-Cap IR Year (1, 2, 3, 4, etc) in which " &F14 & " is applying:" -> Indicate the Price-Cap IR Year (1, 2, 3, 4, etc) in which Algoma Power Inc. is applying: | F28: 2
A30: ="For which Rate Year is " &F14 & " seeking approval for its CoS application?" -> For which Rate Year is Algoma Power Inc. seeking approval for its CoS application?
A32: =F14 & " is applying for:" -> Algoma Power Inc. is applying for: | F32: ACM and ICM Approval
A34: Last Rebasing Year: | F34: =IF(F26="COS", K26-F28, VLOOKUP(F28, D109:E117,2,FALSE)) -> 2019
A36: Last COS OEB Application Number | F36: EB-2019-0019
A38: The most recent complete year for which actual billing and load data exists | F38: =K26-2 -> 2019
E40: Current IPI | F40: 0.015
E42: Strech Factor Assigned to Middle Cohort | F42: III
E44: Stretch Factor Value | F44: 0.003
E46: Price Cap Index | F46: =F40-F44 -> 0.012
A48: Based on the inputs above, the growth factor utilized in the Materiality Threshold Calculation will be determined by: | F48: =CONCATENATE("Revenues Based on ",IF($F$26="COS", $K$26 & " Test Year Distribution Revenues", VLOOKUP($F$28, $D$109:$G$117, 3,FALSE))) -> Revenues Based on 2019 Board-Approved Distribution Demand | I48: =LEFT(RIGHT(F48,LEN(F48)-18),4) -> 2019 | J48: These will be hidden later. For year three price cap IR, it should be most recent actuals for 2014 divided by 2013 CoS Board-approved. For year 4 price cap IR, should be 2014 actuals divided by 2012 CoS Board-approved.
F49: =CONCATENATE("Revenues Based on ",IF(F26="COS",F38&" Actual Distribution Revenues",VLOOKUP($F$28, $D$109:$G$117, 4,FALSE))) -> Revenues Based on 2018 Actual Distribution Demand | I49: =LEFT(RIGHT(F49,LEN(F49)-18),4) -> 2018
B51: Notes
C53: Pale green cells represent input cells.
C55: Pale blue cells represent drop-down lists. The applicant should select the appropriate item from the drop-down list.
C57: White cells contain fixed values, automatically generated values or formulae.
A60: This Workbook Model is protected by copyright and is being made available to you solely for the purpose of filing your ICM application. You may use and copy this model for that purpose, and provide a copy of this model to any person that is advising or assisting you in that regard. Except as indicated above, any copying, reproduction, publication, sale, adaptation, translation, modification, reverse engineering or other use or dissemination of this model without the express written consent of the Ontario Energy Board is prohibited. If you provide a copy of this model to a person that is advising or assisting you in preparing the application or reviewing your draft rate order, you must ensure that the person understands and agrees to the restrictions noted above. While this model has been provided in Excel format and is required to be filed with the applications, the onus remains on the applicant to ensure the accuracy of the data and the results.
A61: OEB policies regarding rate-setting and rebasing following distributor consolidations could allow a distributor to not rebase rates for up to ten years. A distributor could also apply for and receive OEB approval to defer rebasing. If a distributor is under Price Cap IR for more than four years after rebasing and applies for an ICM, this spreadsheet will need to be adapted to accommodate those circumstances. The distributor should contact OEB staff to discuss the circumstances so that a customized model can be provided.
B93: CoS | D93: Price Cap IR | H93: Deferred Rebasing (e.g. due to MAADs)
C94: Year | D94: 1 | E94: 2 | F94: 3 | G94: 4 | H94: 5 | I94: 6 | J94: 7 | K94: 8 | L94: 9 | M94: 10
A95: RY | B95: =K26 -> 2021 | C95: t | D95: =$K$26 -> 2021 | E95: 2021 | F95: 2021 | G95: 2021 | H95: 2021 | I95: 2021 | J95: 2021 | K95: =$K$26 -> 2021 | L95: 2021 | M95: 2021
A96: LY ACTUALS | B96: =B95-2 -> 2019 | C96: t-2 | D96: =D95-2 -> 2019 | E96: =E95-2 -> 2019 | F96: 2019 | G96: 2019 | H96: 2019 | I96: 2019 | J96: 2019 | K96: 2019 | L96: 2019 | M96: 2019
A97: LAST COS | D97: =D95-1 -> 2020 | E97: =E95-2 -> 2019 | F97: =F95-3 -> 2018 | G97: =G95-G94 -> 2017 | H97: =H95-H94 -> 2016 | I97: =I95-I94 -> 2015 | J97: 2014 | K97: 2013 | L97: 2012 | M97: 2011
A99: Growth
A100: Numerator | B100: =CONCATENATE(B95," Test Year Distribution Demand") -> 2021 Test Year Distribution Demand | D100: =CONCATENATE(D97," Board-Approved Distribution Demand") -> 2020 Board-Approved Distribution Demand | E100: =CONCATENATE(E97," Board-Approved Distribution Demand") -> 2019 Board-Approved Distribution Demand | F100: =CONCATENATE(F97+1," Actual Distribution Demand") -> 2019 Actual Distribution Demand | G100: =CONCATENATE(G97+2," Actual Distribution Demand") -> 2019 Actual Distribution Demand | H100: =CONCATENATE(H97+3," Actual Distribution Demand") -> 2019 Actual Distribution Demand | I100: =CONCATENATE(I97+4," Actual Distribution Demand") -> 2019 Actual Distribution Demand | J100: =CONCATENATE(J97+5," Actual Distribution Demand") -> 2019 Actual Distribution Demand | K100: =CONCATENATE(K97+6," Actual Distribution Demand") -> 2019 Actual Distribution Demand | L100: =CONCATENATE(L97+7," Actual Distribution Demand") -> 2019 Actual Distribution Demand | M100: =CONCATENATE(M97+8," Actual Distribution Demand") -> 2019 Actual Distribution Demand
A101: Denominator | B101: =CONCATENATE(B96," Actual Distribution Demand") -> 2019 Actual Distribution Demand | D101: =CONCATENATE(D96," Actual Distribution Demand") -> 2019 Actual Distribution Demand | E101: =CONCATENATE(E96-1," Actual Distribution Demand") -> 2018 Actual Distribution Demand | F101: =CONCATENATE(F97," Board-Approved Distribution Demand") -> 2018 Board-Approved Distribution Demand | G101: 2017 Board-Approved Distribution Demand | H101: 2016 Board-Approved Distribution Demand | I101: 2015 Board-Approved Distribution Demand | J101: 2014 Board-Approved Distribution Demand | K101: 2013 Board-Approved Distribution Demand | L101: 2012 Board-Approved Distribution Demand | M101: 2011 Board-Approved Distribution Demand
A102: Annualized? | B102: Yes | D102: No | E102: No | F102: No | G102: Yes | H102: Yes | I102: Yes | J102: Yes | K102: Yes | L102: Yes | M102: Yes
A103: Divisor to Annualized | B103: =B106 -> 2 | D103: 1 | E103: 1 | F103: 1 | G103: 2 | H103: 3 | I103: 4 | J103: 5 | K103: 6 | L103: 7 | M103: 8
B104: =LEFT(B100,4) -> 2021 | D104: =LEFT(D100,4) -> 2020 | E104: 2019 | F104: 2019 | G104: 2019 | H104: 2019 | I104: 2019 | J104: 2019 | K104: 2019 | L104: =LEFT(L100,4) -> 2019 | M104: 2019
B105: =LEFT(B101,4) -> 2019 | D105: 2019 | E105: 2018 | F105: 2018 | G105: 2017 | H105: 2016 | I105: 2015 | J105: 2014 | K105: 2013 | L105: =LEFT(L101,4) -> 2012 | M105: 2011
B106: =B104-B105 -> 2 | D106: =D104-D105 -> 1 | E106: 1 | F106: 1 | G106: 2 | H106: 3 | I106: 4 | J106: 5 | K106: 6 | L106: =L104-L105 -> 7 | M106: 8
D109: Price Cap IR | E109: Last CoS
B110: Normal Price cap period term | D110: 1 | E110: =D97 -> 2020 | F110: =D100 -> 2020 Board-Approved Distribution Demand | G110: =D101 -> 2019 Actual Distribution Demand
D111: 2 | E111: =E97 -> 2019 | F111: =E100 -> 2019 Board-Approved Distribution Demand | G111: =E101 -> 2018 Actual Distribution Demand
D112: 3 | E112: =F97 -> 2018 | F112: =F100 -> 2019 Actual Distribution Demand | G112: =F101 -> 2018 Board-Approved Distribution Demand
D113: 4 | E113: =G97 -> 2017 | F113: =G100 -> 2019 Actual Distribution Demand | G113: =G101 -> 2017 Board-Approved Distribution Demand
B114: Deferred rebasng (including MAADs deferral period) (Max. 10 years) | D114: 5 | E114: =H97 -> 2016 | F114: =H100 -> 2019 Actual Distribution Demand | G114: =H101 -> 2016 Board-Approved Distribution Demand
D115: 6 | E115: =I97 -> 2015 | F115: =I100 -> 2019 Actual Distribution Demand | G115: =I101 -> 2015 Board-Approved Distribution Demand
D116: 7 | E116: =J97 -> 2014 | F116: =J100 -> 2019 Actual Distribution Demand | G116: =J101 -> 2014 Board-Approved Distribution Demand
D117: 8 | E117: =K97 -> 2013 | F117: =K100 -> 2019 Actual Distribution Demand | G117: =K101 -> 2013 Board-Approved Distribution Demand
D118: 9 | E118: =L97 -> 2012 | F118: =L100 -> 2019 Actual Distribution Demand | G118: =L101 -> 2012 Board-Approved Distribution Demand
D119: 10 | E119: =M97 -> 2011 | F119: =M100 -> 2019 Actual Distribution Demand | G119: =M101 -> 2011 Board-Approved Distribution Demand

Sheet 2. Related Links (hidden)
A15: intentionally blank

Sheet lists (hidden)
B1: Embedded Distributor | C1: =COUNTA(B1:B17) -> 4 | I1: A Standby Service Charge will be applied for a month where standby power is not provided. The applicable rate is the approved Distribution Volumetric Rate of the applicable service class and is applied to gross metered demand or contracted amount, whichever is greater. A monthly administration charge of $200, for simple metering arrangements, or $500, for complex metering arrangements, will also be applied. | L1: Loss Factors | N1: Units | O1: Units1 | P1: Units2 | Z1: Account History | AA1: Account set up charge/change of occupancy charge (plus credit agency costs if applicable) | AB1: Total Loss Factor – Embedded Distributor – Hydro One Networks Inc. | AL1: Alectra Utilities Corporation - Brampton Rate Zone | AM1: Algoma Power Inc. | AO1: DISTRIBUTED GENERATION [DGEN] | AP1: kW | AT1: Sub-Total: Delivery (Distribution and Retail Transmission)
A2: RESIDENTIAL R1 | B2: General Service 3,000 to 4,999 kW | I2: Distribution Volumetric Rate | L2: Total Loss Factor – Primary Metered Customer | N2: $ | O2: $/kWh | P2: $ | Z2: Account set up charge/change of occupancy charge | AA2: Administrative Billing Charge | AB2: Total Loss Factor – Primary Metered Customer | AL2: Alectra Utilities Corporation - Enersource Rate Zone | AM2: Atikokan Hydro Inc. | AO2: EMBEDDED DISTRIBUTOR | AP2: kW | AT2: Wholesale Market Service Rate | AW2: =AU2*AV2 -> 0 | AX2: =AU2 -> 0 | AY2: 0 | AZ2: =AX2*AY2 -> 0 | BB2: =AZ2-AW2 -> 0 | BC2: =BB2/AW2 -> 
A3: RESIDENTIAL R2 | B3: General Service 1,000 to 4,999 kW | I3: Distribution Volumetric Rate - $/kW of contracted amount | L3: Total Loss Factor – Primary Metered Customer < 5,000 kW | N3: $/kWh | O3: $/kW | P3: % | W3: MSC | Z3: Account set up charge/change of occupancy charge (plus credit agency costs if applicable – Residential) | AA3: Bell Canada Pole Rentals | AB3: Total Loss Factor – Primary Metered Customer < 5,000 kW | AL3: Alectra Utilities Corporation - Horizon Rate Zone | AM3: Bluewater Power Distribution Corporation | AO3: EMBEDDED DISTRIBUTOR | AP3: kW | AT3: Rural or Remote Electricity Rate Protection Charge (RRRP) | AW3: =AU3*AV3 -> 0 | AX3: 0 | AY3: 0 | AZ3: =AX3*AY3 -> 0 | BB3: =AZ3-AW3 -> 0 | BC3: =BB3/AW3 -> 
A4: SEASONAL CUSTOMERS | B4: General Service Equal To Or Greater Than 1,500 kW - Interval Metered | I4: Distribution Wheeling Service Rate | L4: Total Loss Factor – Primary Metered Customer > 5,000 kW | N4: $/kW | O4: $/kVA | W4: SM_Rate_Adder | Z4: Account set up charge/change of occupancy charge (plus credit agency costs if applicable) | AA4: Clearance Pole Attachment charge $/pole/year | AB4: Total Loss Factor – Primary Metered Customer > 5,000 kW | AL4: Alectra Utilities Corporation - PowerStream Rate Zone | AM4: Brant County Power Inc. | AO4: FARMS - SINGLE PHASE ENERGY-BILLED [F1] | AP4: kWh | AT4: Standard Supply Service – Administration Charge (if applicable) | AW4: =AU4*AV4 -> 0 | AX4: 0 | AY4: 0 | AZ4: =AX4*AY4 -> 0 | BB4: =AZ4-AW4 -> 0 | BC4: =BB4/AW4 -> 
A5: STREET LIGHTING | I5: Electricity Rate | L5: Total Loss Factor – Secondary Metered Customer | N5: $/kVA | W5: MSC_Rate_Rider_ | Z5: Arrears certificate | AA5: Collection of account charge – no disconnection | AB5: Total Loss Factor – Secondary Metered Customer | AL5: Algoma Power Inc. | AM5: Brantford Power Inc. | AO5: FARMS - THREE PHASE ENERGY-BILLED [F3] | AP5: kWh | AT5: Sub-Total: Regulatory | AW5: =SUM(AW2:AW4) -> 0 | AZ5: =SUM(AZ2:BA4) -> 0 | BB5: =AZ5-AW5 -> 0 | BC5: =BB5/AW5 -> 
A6: RESIDENTIAL | I6: Electricity Rate - All Additional kWh | L6: Total Loss Factor – Secondary Metered Customer < 5,000 kW | W6: VC | Z6: Arrears certificate (credit reference) | AA6: Collection of account charge – no disconnection – after regular hours | AB6: Total Loss Factor – Secondary Metered Customer < 5,000 kW | AL6: Atikokan Hydro Inc. | AM6: Burlington Hydro Inc. | AO6: GENERAL SERVICE - COMMERCIAL | AP6: kW | AT6: Debt Retirement Charge (DRC) | AW6: =AU6*AV6 -> 0 | AX6: =AU6 -> 0 | AY6: =AV6 -> 0 | AZ6: =AX6*AY6 -> 0 | BB6: =AZ6-AW6 -> 0 | BC6: =BB6/AW6 -> 
A7: GENERAL SERVICE LESS THAN 50 kW | I7: Electricity Rate - First 250 kWh | AL7: Attawapiskat Power Corp. | AM7: Cambridge and North Dumfries Hydro Inc. | AO7: GENERAL SERVICE - INSTITUTIONAL | AP7: kW
A8: GENERAL SERVICE 50 TO 4,999 KW | I8: Electricity Rate -All Additional kWh | L8: Total Loss Factor – Secondary Metered Customer > 5,000 kW | W8: VC_Rate_Rider_ | Z8: Charge to certify cheque | AA8: Collection of account charge – no disconnection - during regular business hours | AB8: Total Loss Factor – Secondary Metered Customer > 5,000 kW | AL8: Bluewater Power Distribution Corporation | AM8: Canadian Niagara Power Inc. | AO8: GENERAL SERVICE 1,000 TO 2,999 KW | AP8: kW | AT8: Total Bill on RPP (before taxes) | BB8: =AZ8-AW8 -> 0
A9: GENERAL SERVICE 50 TO 999 kW | I9: Electricity Rate First 1,000 kWh | L9: Distribution Loss Factor - Secondary Metered Customer < 5,000 kW | W9: VC_GA_Rate_Rider_kW_ | Z9: Collection of Account Charge – No Disconnection | AA9: Collection of account charge – no disconnection – during regular hours | AL9: Brantford Power Inc. | AM9: Centre Wellington Hydro Ltd. | AO9: GENERAL SERVICE 1,000 TO 4,999 KW | AP9: kW | AT9: HST | AW9: =AV9*AW8 -> 0 | AY9: =AV9 -> 0 | AZ9: =AY9*AZ8 -> 0 | BB9: =AZ9-AW9 -> 0 | BC9: =BB9/AW9 -> 
A10: GENERAL SERVICE 1,000 TO 4,999 kW | I10: Electricity Rate First 25,000 kWh | L10: Distribution Loss Factor - Secondary Metered Customer > 5,000 kW | W10: VC_LV_Rate | Z10: Credit Card Convenience Charge | AA10: Collection/Disconnection/Load Limiter/Reconnection – if in Community | AL10: Burlington Hydro Inc. | AM10: Chapleau Public Utilities Corporation | AO10: GENERAL SERVICE 1,000 TO 4,999 KW - INTERVAL METERS | AP10: kW | AT10: Total Bill (including HST) | AW10: =AW9+AW8 -> 0 | AZ10: =AZ9+AZ8 -> 0 | BB10: =AZ10-AW10 -> 0 | BC10: =BB10/AW10 -> 
A11: LARGE USE | I11: Electricity Rate First 6,000 kWh | L11: Distribution Loss Factor - Primary Metered Customer < 5,000 kW | W11: RTSR_Network | Z11: Credit check (plus credit agency costs) | AA11: Credit Card Convenience Charge | AL11: Canadian Niagara Power Inc. | AM11: Collus PowerStream Corporation | AO11: GENERAL SERVICE 1,000 TO 4,999 KW (CO-GENERATION) | AP11: kW | AT11: Ontario Clean Energy Benefit (OCEB) | AW11: =-0.1*AW10 -> 0 | AY11: =AV11 -> 0 | AZ11: =-0.1*AZ10 -> 0 | BB11: =AZ11-AW11 -> 0 | BC11: =BB11/AW11 -> 
A12: UNMETERED SCATTERED LOAD | I12: Electricity Rate Next 1,500 kWh | L12: Distribution Loss Factor - Primary Metered Customer > 5,000 kW | W12: RTSR_Connection | Z12: Credit reference Letter | AA12: Disconnect/Reconnect at meter – after regular hours | AL12: Centre Wellington Hydro Ltd. | AM12: Cooperative Hydro Embrun Inc. | AO12: GENERAL SERVICE 1,500 TO 4,999 KW | AP12: kW | AT12: Total Bill on RPP (including OCEB) | AW12: =AW10+AW11 -> 0 | AZ12: =AZ10+AZ11 -> 0 | BB12: =AZ12-AW12 -> 0 | BC12: =BB12/AW12 -> 
A13: SENTINEL LIGHTING | I13: General Service 1,500 to 4,999 kW customer | AL13: Chapleau Public Utilities Corporation | AM13: E.L.K. Energy Inc. | AO13: GENERAL SERVICE 2,500 TO 4,999 KW | AP13: kW
A14: EMBEDDED DISTRIBUTOR | I14: General Service 50 to 1,499 kW customer | L14: Total Loss Factor - Embedded Distributor | W14: RTSR_Network_Interval | Z14: Credit reference/credit check (plus credit agency costs – General Service) | AA14: Disconnect/Reconnect at meter – during regular hours | AL14: COLLUS Power Corporation | AM14: Enersource Hydro Mississauga Inc. | AO14: GENERAL SERVICE 3,000 TO 4,999 KW | AP14: kW | AT14: Total Bill on TOU (before taxes) | BB14: =AZ14-AW14 -> 0
A15: STANDBY POWER | I15: General Service Large Use customer | L15: Total Loss Factor – Embedded Distributor – Hydro One Networks Inc. | W15: RTSR_Connection_Interval | Z15: Credit Reference/credit check (plus credit agency costs) | AA15: Disconnect/Reconnect at pole – after regular hours | AL15: Cooperative Hydro Embrun Inc. | AM15: Entegrus Powerlines Inc. | AO15: GENERAL SERVICE 3,000 TO 4,999 KW - INTERMEDIATE USE | AP15: kW | AT15: HST | AW15: =AV15*AW14 -> 0 | AY15: =AV15 -> 0 | AZ15: =AY15*AZ14 -> 0 | BB15: =AZ15-AW15 -> 0 | BC15: =BB15/AW15 -> 
A16: GENERAL SERVICE 50 TO 2,999 KW | I16: Green Energy Act Initiatives Funding Adder - effective until the date of the next cost of service-based rate order | W16: RTSR_Network_Interval_GR1000kW | Z16: Dispute Test – Commercial self contained -- MC | AA16: Disconnect/Reconnect at pole – during regular hours | AL16: E.L.K. Energy Inc. | AM16: Entegrus Powerlines Inc. - Dutton Service Area | AO16: GENERAL SERVICE 3,000 TO 4,999 KW - INTERVAL METERED | AP16: kW | AT16: Total Bill (including HST) | AW16: =AW15+AW14 -> 0 | AZ16: =AZ15+AZ14 -> 0 | BB16: =AZ16-AW16 -> 0 | BC16: =BB16/AW16 -> 
A17: GENERAL SERVICE 3,000 TO 4,999 KW | I17: Green Energy Act Plan Funding Adder | W17: RTSR_Connection_Interval_GR1000kW | Z17: Dispute Test – Commercial TT -- MC | AA17: Disconnect/Reconnect Charge – At Meter – After Hours | AL17: Energy Plus Inc. - Brant County Rate Zone | AM17: Entegrus Powerlines Inc. - former Chatham-Kent Hydro Service Area | AO17: GENERAL SERVICE 3,000 TO 4,999 KW - TIME OF USE | AP17: kW | AT17: Ontario Clean Energy Benefit (OCEB) | AW17: =-0.1*AW16 -> 0 | AY17: =AV17 -> 0 | AZ17: =-0.1*AZ16 -> 0 | BB17: =AZ17-AW17 -> 0 | BC17: =BB17/AW17 -> 
A18: GENERAL SERVICE 3,000 TO 4,999 KW - INTERMEDIATE USE | I18: Green Energy Act Plan Funding Adder - effective April 1, 2013 until March 31, 2014 | W18: RTSR_Line_Connection | Z18: Dispute Test – Residential | AA18: Disconnect/Reconnect Charge – At Meter – During Regular Hours | AL18: Energy Plus Inc. - Cambridge and North Dumfries Rate Zone | AM18: Entegrus Powerlines Inc. - Newbury Service Area | AO18: GENERAL SERVICE 50 TO 1,000 KW | AP18: kW | AT18: Total Bill on TOU (including OCEB) | AW18: =AW16+AW17 -> 0 | AZ18: =AZ16+AZ17 -> 0 | BB18: =AZ18-AW18 -> 0 | BC18: =BB18/AW18 -> 
A19: LARGE USE - REGULAR | I19: Green Energy Act Plan Funding Adder - effective April 1, 2014 until March 31, 2015 | W19: RTSR_Transformer_Connection | Z19: Duplicate Invoices for previous billing | AA19: Disconnect/Reconnect Charge – At Pole – After Hours | AL19: Entegrus Powerlines Inc. | AM19: Entegrus Powerlines Inc. - Strathroy, Mount Brydges and Parkhill Service Areas | AO19: GENERAL SERVICE 50 TO 1,000 KW - INTERVAL METERS | AP19: kW
A20: LARGE USE - 3TS | I20: ICM Rate Rider (2014) - in effect until the effective date of the next cost of service rates | W20: WMSR | Z20: Easement Letter | AA20: Disconnect/Reconnect Charge – At Pole – During Regular Hours | AL20: ENWIN Utilities Ltd. | AM20: ENWIN Utilities Ltd. | AO20: GENERAL SERVICE 50 TO 1,000 KW - NON INTERVAL METERS | AP20: kW
A21: LARGE USE - FORD ANNEX | I21: Low Voltage Service Charge | W21: RRRP | Z21: Income Tax Letter | AA21: Disconnect/Reconnect Charges for non payment of account - At Meter After Hours | AL21: Erie Thames Powerlines Corporation | AM21: Erie Thames Powerlines Corporation | AO21: GENERAL SERVICE 50 TO 1,499 KW | AP21: kW
A22: GENERAL SERVICE 50 TO 499 kW | I22: Low Voltage Service Rate | W22: SPC | Z22: Interval Meter Interrogation | AA22: Disconnect/Reconnect charges for non payment of account – at meter after regular hours | AL22: Espanola Regional Hydro Distribution Corporation | AM22: Espanola Regional Hydro Distribution Corporation | AO22: GENERAL SERVICE 50 TO 1,499 KW - INTERVAL METERED | AP22: kW
A23: GENERAL SERVICE 500 TO 4,999 kW | I23: Low Voltage Volumetric Rate | W23: DRC | Z23: Interval meter request change | AA23: Disconnect/Reconnect Charges for non payment of account - At Meter During Regular Hours | AL23: Essex Powerlines Corporation | AM23: Essex Powerlines Corporation | AO23: GENERAL SERVICE 50 TO 2,499 KW | AP23: kW
A24: GENERAL SERVICE 50 TO 1,499 kW | I24: LRAM Rate Rider - Effective Until April 30, 2015 | W24: SSS | Z24: Legal letter | AA24: Disconnect/Reconnect charges for non payment of account – at meter during regular hours | AL24: Festival Hydro Inc. | AM24: Festival Hydro Inc. | AO24: GENERAL SERVICE 50 TO 2,999 KW | AP24: kW
A25: INTERMEDIATE USER | I25: Minimum Distribution Charge - per KW of maximum billing demand in the previous 11 months | W25: SFLF | Z25: Legal letter charge | AA25: Disconnect/Reconnect charges for non payment of account – at pole after regular hours | AL25: Fort Frances Power Corporation | AM25: Fort Frances Power Corporation | AO25: GENERAL SERVICE 50 TO 2,999 KW - INTERVAL METERED | AP25: kW
A26: LARGE USE WITH DEDICATED ASSETS | B26: January | I26: Monthly Distribution Wheeling Service Rate - Dedicated LV Line | W26: DLF_Secondary_LT_5000kW | Z26: Meter dispute charge plus Measurement Canada fees (if meter found correct) | AA26: Disconnect/Reconnect charges for non payment of account – at pole during regular hours | AL26: Greater Sudbury Hydro Inc. | AM26: Greater Sudbury Hydro Inc. | AO26: GENERAL SERVICE 50 TO 2,999 KW - TIME OF USE | AP26: kW
A27: GENERAL SERVICE 50 TO 699 KW | B27: February | I27: Monthly Distribution Wheeling Service Rate - Hydro One Networks | W27: DLF_Secondary_GT_5000kW | Z27: Notification charge | AA27: Disconnect/Reconnection for >300 volts - after regular hours | AL27: Grimsby Power Inc. | AM27: Grimsby Power Inc. | AO27: GENERAL SERVICE 50 TO 4,999 KW | AP27: kW
A28: GENERAL SERVICE 700 TO 4,999 KW | B28: March | I28: Monthly Distribution Wheeling Service Rate - Shared LV Line | W28: DLF_Primary_LT_5000kW | Z28: Pulling Post Dated Cheques | AA28: Disconnect/Reconnection for >300 volts - during regular hours | AL28: Guelph Hydro Electric Systems Inc. | AM28: Guelph Hydro Electric Systems Inc. | AO28: GENERAL SERVICE 50 TO 4,999 KW - INTERVAL METERED | AP28: kW
A29: DISTRIBUTED GENERATION [DGEN] | B29: April | I29: Monthly Distribution Wheeling Service Rate - Waterloo North Hydro | W29: DLF_Primary_GT_5000kW | Z29: Request for other billing information | AA29: Disposal of Concrete Poles | AL29: Haldimand County Hydro Inc. | AM29: Haldimand County Hydro Inc. | AO29: GENERAL SERVICE 50 TO 4,999 KW - TIME OF USE | AP29: kW
A30: ENERGY FROM WASTE | B30: May | I30: Rate Rider for Application of Tax Change - effective until April 30, 2015 | W30: TLF_Secondary_LT_5000kW | Z30: Returned cheque (plus bank charges) | AA30: Dispute Test – Commercial TT -- MC | AL30: Halton Hills Hydro Inc. | AM30: Halton Hills Hydro Inc. | AO30: GENERAL SERVICE 50 TO 4,999 KW (COGENERATION) | AP30: kW
A31: UR RESIDENTIAL | B31: June | I31: Rate Rider for Application of Tax Change - effective until December 31, 2014 | W31: TLF_Secondary_GT_5000kW | Z31: Returned cheque charge (plus bank charges) | AA31: Install/Remove load control device – after regular hours | AL31: Hearst Power Distribution Company Limited | AM31: Hearst Power Distribution Company Limited | AO31: GENERAL SERVICE 50 TO 4,999 KW (FORMERLY TIME OF USE) | AP31: kW
A32: R1 RESIDENTIAL | B32: July | I32: Rate Rider for Application of Tax Change (2014) - effective until April 30, 2015 | W32: TLF_Primary_LT_5000kW | Z32: Special Billing Service (aggregation) | AA32: Install/Remove load control device – during regular hours | AL32: Hydro 2000 Inc. | AM32: Horizon Utilities Corporation | AO32: GENERAL SERVICE 50 TO 499 KW | AP32: kW
A33: R2 RESIDENTIAL | B33: August | I33: Rate Rider for Application of Tax Change (per connection) - effective until April 30, 2015 | W33: TLF_Primary_GT_5000kW | Z33: Special Billing Service (sub-metering charge per meter) | AA33: Interval Meter Interrogation | AL33: Hydro Hawkesbury Inc. | AM33: Hydro 2000 Inc. | AO33: GENERAL SERVICE 50 TO 699 KW | AP33: kW
A34: SEASONAL | B34: September | I34: Rate Rider for CGAAP Accounting Changes (2013) - effective until April 30, 2017 | W34: TLF_EmbeddedDistributor | Z34: Special meter reads | AA34: Interval Meter Load Management Tool Charge $/month | AL34: Hydro One Networks Inc. | AM34: Hydro Hawkesbury Inc. | AO34: GENERAL SERVICE 50 TO 999 KW | AP34: kW
A35: URBAN GENERAL SERVICE ENERGY BILLED | B35: October | I35: Rate Rider for Deferral/Variance Account (2012) - effective unitl April 30, 2016 | Z35: Statement of Account | AA35: Interval meter request change | AL35: Hydro Ottawa Limited | AM35: Hydro One Brampton Networks Inc. | AO35: GENERAL SERVICE 50 TO 999 KW - INTERVAL METERED | AP35: kW
A36: GENERAL SERVICE ENERGY BILLED | B36: November | I36: Rate Rider for Deferral/Variance Account Disposition – effective until April 30, 2015 | Z36: Unprocessed Payment Charge (plus bank charges) | AA36: Late Payment – per annum | AL36: Innpower Corporation | AM36: Hydro One Networks Inc. | AO36: GENERAL SERVICE 500 TO 4,999 KW | AP36: kW
A37: URBAN GENERAL SERVICE DEMAND BILLED | B37: December | I37: Rate Rider for Deferral/Variance Account Disposition (2012) - effective until April 30, 2016 | AA37: Late Payment – per month | AL37: Kenora Hydro Electric Corporation Ltd. | AM37: Hydro Ottawa Limited | AO37: GENERAL SERVICE 700 TO 4,999 KW | AP37: kW
A38: GENERAL SERVICE DEMAND BILLED | I38: Rate Rider for Deferral/Variance Account Disposition (2013) - effective until April 30, 2014 | AA38: Layout fees | AL38: Kingston Hydro Corporation | AM38: Innisfil Hydro Distribution Systems Limited | AO38: GENERAL SERVICE DEMAND BILLED (50 KW AND ABOVE) [GSD] | AP38: kW
A39: DISTRIBUTED GENERATION | I39: Rate Rider for Deferral/Variance Account Disposition (2014) - effective until April 28, 2016 | AA39: Meter dispute charge plus Measurement Canada fees (if meter found correct) | AL39: Kitchener-Wilmot Hydro Inc. | AM39: Kenora Hydro Electric Corporation Ltd. | AO39: GENERAL SERVICE ENERGY BILLED (LESS THAN 50 KW) [GSE-METERED] | AP39: kWh
A40: SUB TRANSMISSION | I40: Rate Rider for Deferral/Variance Account Disposition (2014) - effective until April 30, 2015 | AA40: Meter Interrogation Charge | AL40: Lakefront Utilities Inc. | AM40: Kingston Hydro Corporation | AO40: GENERAL SERVICE ENERGY BILLED (LESS THAN TO 50 KW) [GSE-UNMETERED] | AP40: kWh
A41: GENERAL SERVICE GREATER THAN ,000 kW | I41: Rate Rider for Deferral/Variance Account Disposition (2014) - effective until December 31, 2014 | AA41: Missed Service Appointment | AL41: Lakeland Power Distribution Ltd. | AM41: Kitchener-Wilmot Hydro Inc. | AO41: GENERAL SERVICE EQUAL TO OR GREATER THAN 1,500 KW | AP41: kW
A42: GENERAL SERVICE 1,500 TO 4,999 kW | I42: Rate Rider for Deferral/Variance Account Disposition (2014) - effective until December 31, 2015 | AA42: Norfolk Pole Rentals – Billed | AL42: Lakeland Power Distribution Ltd. - Parry Sound Rate Zone | AM42: Lakefront Utilities Inc. | AO42: GENERAL SERVICE EQUAL TO OR GREATER THAN 1,500 KW - INTERVAL METERED | AP42: kW
A43: HCI, RESOP, OTHER ENERGY RESOURCE | I43: Rate Rider for Deferral/Variance Account Dispositon (2012) - effective until April 30, 2016 | AA43: Optional Interval/TOU Meter charge $/month | AL43: London Hydro Inc. | AM43: Lakeland Power Distribution Ltd. | AO43: GENERAL SERVICE GREATER THAN 1,000 KW | AP43: kW
A44: GENERAL SERVICE 1,000 TO 4,999 KW (CO-GENERATION) | I44: Rate Rider for Disposition of Accounting Changes Under CGAAP Account 1576 - effective until April 30, 2016 | AA44: Overtime Locate | AL44: Midland Power Utility Corporation | AM44: London Hydro Inc. | AO44: GENERAL SERVICE GREATER THAN 50 kW - WMP | AP44: kW
A45: GENERAL SERVICE 1,000 KW AND GREATER | I45: Rate Rider for Disposition of Deferral/Variance Accounts (2010) - effective until December 31, 2014 | AA45: Owner Requested Disconnection/Reconnection – after regular hours | AL45: Milton Hydro Distribution inc. | AM45: Midland Power Utility Corporation | AO45: GENERAL SERVICE INTERMEDIATE 1,000 TO 4,999 KW | AP45: kW
A46: GENERAL SERVICE GREATER THAN 1,000kW | I46: Rate Rider for Disposition of Deferral/Variance Accounts (2011) - effective until April 30, 2015 | AA46: Owner Requested Disconnection/Reconnection – during regular hours | AL46: Newmarket - Tay Power Distribution Ltd. | AM46: Milton Hydro Distribution Inc. | AO46: GENERAL SERVICE INTERMEDIATE RATE CLASS 1,000 TO 4,999 KW (FORMERLY GENERAL SERVICE > 50 KW CUSTOMERS) | AP46: kW
A47: GENERAL SERVICE 500 TO 1,499 KW | I47: Rate Rider for Disposition of Deferral/Variance Accounts (2011) - effective until April 30, 2016 | AA47: Returned cheque (plus bank charges) | AL47: Niagara Peninsula Energy Inc. | AM47: Newmarket - Tay Power Distribution Ltd. | AO47: GENERAL SERVICE INTERMEDIATE RATE CLASS 1,000 TO 4,999 KW (FORMERLY LARGE USE CUSTOMERS) | AP47: kW
A48: GENERAL SERVICE EQUAL TO OR GREATER THAN 1,500 KW | I48: Rate Rider for Disposition of Deferral/Variance Accounts (2012) - effective until April 30, 2014 | AA48: Rural system expansion / line connection fee | AL48: Niagara-on-the-Lake Hydro Inc. | AM48: Niagara Peninsula Energy Inc. | AO48: GENERAL SERVICE LESS THAN 50 KW | AP48: kWh
A49: COMPETITIVE SECTOR MULTI-UNIT RESIDENTIAL | I49: Rate Rider for Disposition of Deferral/Variance Accounts (2012) - effective until April 30, 2015 | AA49: Same Day Open Trench | AL49: Norfolk Power Distribution Inc. | AM49: Niagara-on-the-Lake Hydro Inc. | AO49: GENERAL SERVICE LESS THAN 50 KW - SINGLE PHASE ENERGY-BILLED [G1] | AP49: kWh
A50: SEASONAL RESIDENTIAL | I50: Rate Rider for Disposition of Deferral/Variance Accounts (2012) - effective until April 30, 2016 | AA50: Scheduled Day Open Trench | AL50: North Bay Hydro Distribution Limited | AM50: Norfolk Power Distribution Inc. | AO50: GENERAL SERVICE LESS THAN 50 KW - THREE PHASE ENERGY-BILLED [G3] | AP50: kWh
I51: Rate Rider for Disposition of Deferral/Variance Accounts (2012) - effective until August 31, 2014 | AA51: Service call – after regular hours | AL51: Northern Ontario Wires Inc. | AM51: North Bay Hydro Distribution Limited | AO51: GENERAL SERVICE LESS THAN 50 KW - TRANSMISSION CLASS ENERGY-BILLED [T] | AP51: kWh
I52: Rate Rider for Disposition of Deferral/Variance Accounts (2012) - effective until December 31, 2015 | AA52: Service call – customer owned equipment | AL52: Oakville Hydro Electricity Distribution Inc. | AM52: Northern Ontario Wires Inc. | AO52: GENERAL SERVICE LESS THAN 50 KW - URBAN ENERGY-BILLED [UG] | AP52: kWh
I53: Rate Rider for Disposition of Deferral/Variance Accounts (2012) - effective until December 31, 2016 Applicable only in the former service area of Clinton Power | AA53: Service Call – Customer-owned Equipment – After Regular Hours | AL53: Orangeville Hydro Limited | AM53: Oakville Hydro Electricity Distribution Inc. | AO53: GENERAL SERVICE SINGLE PHASE - G1 | AP53: kW
I54: Rate Rider for Disposition of Deferral/Variance Accounts (2012) – effective until December 31, 2016 Applicable only in the former service area of Clinton Power | AA54: Service Call – Customer-owned Equipment – During Regular Hours | AL54: Orillia Power Distribution Corporation | AM54: Orangeville Hydro Limited | AO54: GENERAL SERVICE THREE PHASE - G3 | AP54: kW
I55: Rate Rider for Disposition of Deferral/Variance Accounts (2012) - effective until January 31, 2014 | AA55: Service Charge for onsite interrogation of interval meter due to customer phone line failure - required weekly until line repaired $ 6 | AL55: Oshawa PUC Networks Inc. | AM55: Orillia Power Distribution Corporation | AO55: INTERMEDIATE USERS | AP55: kW
I56: Rate Rider for Disposition of Deferral/Variance Accounts (2012) - effective until June 30, 2014 | AA56: Service Layout - Commercial | AL56: Ottawa River Power Corporation | AM56: Oshawa PUC Networks Inc. | AO56: INTERMEDIATE WITH SELF GENERATION | AP56: kW
I57: Rate Rider for Disposition of Deferral/Variance Accounts (2013) - Applicable only to Wholesale Market Participants - effective until April 30, 2015 | AA57: Service Layout - ResidentiaI | AL57: Peterborough Distribution Incorporated | AM57: Ottawa River Power Corporation | AO57: LARGE USE | AP57: kW
I58: Rate Rider for Disposition of Deferral/Variance Accounts (2013) - effective until April 30, 2014 | AA58: Special Billing Service (sub-metering charge per meter) | AL58: PUC Distribution Inc. | AM58: Parry Sound Power Corporation | AO58: LARGE USE - 3TS | AP58: kW
I59: Rate Rider for Disposition of Deferral/Variance Accounts (2013) - effective until April 30, 2015 | AA59: Special meter reads | AL59: Renfrew Hydro Inc. | AM59: Peterborough Distribution Incorporated | AO59: LARGE USE - FORD ANNEX | AP59: kW
I60: Rate Rider for Disposition of Deferral/Variance Accounts (2013) - effective until April 30, 2015 - not applicable to Wholesale Market Participants | AA60: Specific Charge for Access to the Power Poles - $/pole/year | AL60: Rideau St. Lawrence Distribution Inc. | AM60: PowerStream Inc. | AO60: LARGE USE - REGULAR | AP60: kW
I61: Rate Rider for Disposition of Deferral/Variance Accounts (2013) - effective until April 30, 2017 | AA61: Specific Charge for Bell Canada Access to the Power Poles – per pole/year | AL61: Sioux Lookout Hydro Inc. | AM61: PUC Distribution Inc. | AO61: LARGE USE > 5000 KW | AP61: kW
I62: Rate Rider for Disposition of Deferral/Variance Accounts (2013) - effective until August 31, 2014 | AA62: Switching for company maintenance – Charge based on Time and Materials | AL62: St. Thomas Energy Inc. | AM62: Renfrew Hydro Inc. | AO62: microFIT | AP62: $
I63: Rate Rider for Disposition of Deferral/Variance Accounts (2013) - effective until December 31, 2014 | AA63: Temporary Service – Install & remove – overhead – no transformer | AL63: Thunder Bay Hydro Electricity Distribution Inc. | AM63: Rideau St. Lawrence Distribution Inc. | AO63: RESIDENTIAL | AP63: kWh
I64: Rate Rider for Disposition of Deferral/Variance Accounts (2013) - effective until May 31, 2014 | AA64: Temporary Service – Install & remove – overhead – with transformer | AL64: Tillsonburg Hydro Inc. | AM64: Sioux Lookout Hydro Inc. | AO64: RESIDENTIAL - HENSALL | AP64: kWh
I65: Rate Rider for Disposition of Deferral/Variance Accounts (2014) - effective until December 31, 2015 | AA65: Temporary Service – Install & remove – underground – no transformer | AL65: Toronto Hydro-Electric System Limited | AM65: St. Thomas Energy Inc. | AO65: RESIDENTIAL - HIGH DENSITY [R1] | AP65: kWh
I66: Rate Rider for Disposition of Deferred PILs Variance Account 1562 - effective until March 31, 2016 | AA66: Temporary service install & remove – overhead – no transformer | AL66: Veridian Connections Inc. | AM66: Thunder Bay Hydro Electricity Distribution Inc. | AO66: RESIDENTIAL - LOW DENSITY [R2] | AP66: kWh
I67: Rate Rider for Disposition of Deferred PILs Variance Account 1562 (2012) - effective until April 30, 2015 | AA67: Temporary Service Install & Remove – Overhead – With Transformer | AL67: Wasaga Distribution Inc. | AM67: Tillsonburg Hydro Inc. | AO67: RESIDENTIAL - MEDIUM DENSITY [R1] | AP67: kWh
I68: Rate Rider for Disposition of Deferred PILs Variance Account 1562 (2012) - effective until April 30, 2016 | AA68: Temporary Service Install & Remove – Underground – No Transformer | AL68: Waterloo North Hydro Inc. | AM68: Toronto Hydro-Electric System Limited | AO68: RESIDENTIAL - NORMAL DENSITY [R2] | AP68: kWh
I69: Rate Rider for Disposition of Deferred PILs Variance Account 1562 (2nd Installment - 2012) - effective until April 30, 2016 | AA69: Temporary service installation and removal – overhead – no transformer | AL69: Welland Hydro-Electric System Corp. | AM69: Veridian Connections Inc. | AO69: RESIDENTIAL - TIME OF USE | AP69: kWh
I70: Rate Rider for Disposition of Deferred PILs Variance Account 1562 (per connection) (2012) - effective until April 30, 2015 | AA70: Temporary service installation and removal – overhead – with transformer | AL70: Wellington North Power Inc. | AM70: Wasaga Distribution Inc. | AO70: RESIDENTIAL - URBAN [UR] | AP70: kWh
I71: Rate Rider for Disposition of Deferred PILs Variance Account 1562 (per connection) (2012) - effective until April 30, 2016 | AA71: Temporary service installation and removal – underground – no transformer | AL71: West Coast Huron Energy Inc. | AM71: Waterloo North Hydro Inc. | AO71: RESIDENTIAL REGULAR | AP71: kWh
I72: Rate Rider for Disposition of Global Adjustment Sub-Account (2011) - effective until April 30, 2015 Applicable only for Non-RPP Customers | AL72: Westario Power Inc. | AM72: Welland Hydro-Electric System Corp. | AO72: RESIDENTIAL SUBURBAN | AP72: kWh
I73: Rate Rider for Disposition of Global Adjustment Sub-Account (2011) - effective until April 30, 2016 Applicable only for Non-RPP Customers | AL73: Whitby Hydro Electric Corporation | AM73: Wellington North Power Inc. | AO73: RESIDENTIAL SUBURBAN SEASONAL | AP73: kWh
I74: Rate Rider for Disposition of Global Adjustment Sub-Account (2012) - effective until April 30, 2014 Applicable only for Non-RPP Customers | AL74: Woodstock Hydro Services Inc. | AM74: West Coast Huron Energy Inc. | AO74: RESIDENTIAL SUBURBAN YEAR ROUND | AP74: kWh
I75: Rate Rider for Disposition of Global Adjustment Sub-Account (2012) - effective until April 30, 2015 Applicable only for Non-RPP Customers | AM75: Westario Power Inc. | AO75: RESIDENTIAL URBAN | AP75: kWh
I76: Rate Rider for Disposition of Global Adjustment Sub-Account (2012) - effective until April 30, 2015 Applicatble only for Non-RPP Customers | AM76: Whitby Hydro Electric Corporation | AO76: RESIDENTIAL URBAN YEAR-ROUND | AP76: kWh
I77: Rate Rider for Disposition of Global Adjustment Sub-Account (2012) - effective until April 30, 2016 Applicable only for Non-RPP Customers | AM77: Woodstock Hydro Services Inc. | AO77: SEASONAL RESIDENTIAL | AP77: kWh
I78: Rate Rider for Disposition of Global Adjustment Sub-Account (2012) - effective until January 31, 2014. Applicable only for Non-RPP Customers | AO78: SEASONAL RESIDENTIAL - HIGH DENSITY [R3] | AP78: kWh
I79: Rate Rider for Disposition of Global Adjustment Sub-Account (2012) - effective until June 30, 2014 Applicable only for Non-RPP Customers | AO79: SEASONAL RESIDENTIAL - NORMAL DENSITY [R4] | AP79: kWh
I80: Rate Rider for Disposition of Global Adjustment Sub-Account (2012) Applicable only for Non-RPP Customers - effective until August 31, 2014 | AO80: SENTINEL LIGHTING | AP80: kW
I81: Rate Rider for Disposition of Global Adjustment Sub-Account (2012) Applicable only to Non-RPP Customers - effective until August 31, 2014 | AO81: SMALL COMMERCIAL AND USL - PER CONNECTION | AP81: kWh
I82: Rate Rider for Disposition of Global Adjustment Sub-Account (2013) - effective until April 30, 2014 Applicable only for Non-RPP Customers | AO82: SMALL COMMERCIAL AND USL - PER METER | AP82: kWh
I83: Rate Rider for Disposition of Global Adjustment Sub-Account (2013) - effective until April 30, 2015 Applicable only for Non-RPP Customers | AO83: STANDARD A GENERAL SERVICE AIR ACCESS | AP83: kWh
I84: Rate Rider for Disposition of Global Adjustment Sub-Account (2013) - effective until April 30, 2015 Applicable only for Non-RPP Customers and excluding Wholesale Market Participants | AO84: STANDARD A GENERAL SERVICE ROAD/RAIL | AP84: kWh
I85: Rate Rider for Disposition of Global Adjustment Sub-Account (2013) - effective until April 30, 2017 Applicable only for Non-RPP Customers | AO85: STANDARD A GRID CONNECTED | AP85: kWh
I86: Rate Rider For Disposition of Global Adjustment Sub-Account (2013) - effective until August 31, 2014 Applicable only for Non-RPP Customers | AO86: STANDARD A RESIDENTIAL AIR ACCESS | AP86: kWh
I87: Rate Rider for Disposition of Global Adjustment Sub-Account (2013) - effective until December 31, 2014 Applicable only for Non-RPP Customers | AO87: STANDARD A RESIDENTIAL ROAD/RAIL | AP87: kWh
I88: Rate Rider for Disposition of Global Adjustment Sub-Account (2013) - effective until May 31, 2014 Applicable only for Non-RPP Customers | AO88: STANDBY - GENERAL SERVICE 1,000 - 5,000 KW | AP88: kW
I89: Rate Rider for Disposition of Global Adjustment Sub-Account (2014) - effective until December 31, 2014. Applicable only for Non-RPP - Class B Customers | AO89: STANDBY - GENERAL SERVICE 50 - 1,000 KW | AP89: kW
I90: Rate Rider for Disposition of Global Adjustment Sub-Account (2014) - effective until December 31, 2014. Applicable only for Non-RPP Customers | AO90: STANDBY - LARGE USE | AP90: kW
I91: Rate Rider for Disposition of Global Adjustment Sub-Account (2014) - effective until December 31, 2014. Applicable only for Non-RPP Customers - Class A Customers | AO91: STANDBY DISTRIBUTION SERVICE | AP91: kW
I92: Rate Rider for Disposition of Global Adjustment Sub-Account (2014) - effective until December 31, 2014. Applicable only for Non-RPP Customers - Interval Metered | AO92: STANDBY POWER | AP92: kW
I93: Rate Rider for Disposition of Global Adjustment Sub-Account (2014) - effective until December 31, 2014. Applicable only for Non-RPP Customers - Non Interval Metered | AO93: STANDBY POWER - APPROVED ON AN INTERIM BASIS | AP93: kW
I94: Rate Rider for Disposition of Global Adjustment Sub-Account (2014) - effective until December 31, 2015. Applicable only for Non-RPP Customers. | AO94: STANDBY POWER GENERAL SERVICE 1,500 TO 4,999 KW | AP94: kW
I95: Rate Rider for Disposition of Post Retirement Actuarial Gain - effective until March 31, 2025 | AO95: STANDBY POWER GENERAL SERVICE 50 TO 1,499 KW | AP95: kW
I96: Rate Rider for Disposition of Residual Hisotrical Smart Meter Costs - effective until April 30, 2015 | AO96: STANDBY POWER GENERAL SERVICE LARGE USE | AP96: kW
I97: Rate Rider for Disposition of Residual Hisotrical Smart Meter Costs - effective until April 30, 2017 | AO97: STREET LIGHTING | AP97: kW
I98: Rate Rider for Disposition of Residual Historical Smart Meter Costs - effective until April 30, 2014 | AO98: SUB TRANSMISSION [ST] | AP98: kW
I99: Rate Rider for Disposition of Residual Historical Smart Meter Costs - effective until April 30, 2016 | AO99: UNMETERED SCATTERED LOAD | AP99: kWh
I100: Rate Rider for Disposition of Residual Historical Smart Meter Costs - effective until August 31, 2014 | AO100: URBAN GENERAL SERVICE DEMAND BILLED (50 KW AND ABOVE) [UGD] | AP100: kW
I101: Rate Rider for Disposition of Residual Historical Smart Meter Costs - effective until August 31, 2015 | AO101: URBAN GENERAL SERVICE ENERGY BILLED (LESS THAN 50 KW) [UGE] | AP101: kWh
I102: Rate Rider for Disposition of Residual Historical Smart Meter Costs - effective until December 31, 2014 | AO102: WESTPORT SEWAGE TREATMENT PLANT | AP102: kW
I103: Rate Rider for Disposition of Residual Historical Smart Meter Costs – effective until December 31, 2014 | AO103: YEAR-ROUND RESIDENTIAL - R2 | AP103: kWh
I104: Rate Rider for Disposition of Residual Historical Smart Meter Costs - effective until December 31, 2015
I105: Rate Rider for Disposition of Residual Historical Smart Meter Costs - effective until December 31, 2016
I106: Rate Rider for Disposition of Residual Historical Smart Meter Costs - effective until October 31, 2014
I107: Rate Rider for Disposition of Residual Historical Smart Meter Costs - effective until September 30, 2014
I108: Rate Rider for Disposition of Residual Historical Smart Meter Costs - Non-Interval Metered - effective until April 30, 2014
I109: Rate Rider for Disposition of Residual Historical Smart Meter Costs 2 - in effect until the effective date of the next cost of service-based rate order
I110: Rate Rider for Disposition of Residual Historical Smart Meter Costs 3 - in effect until the effective date of the next cost of service-based rate order
I111: Rate Rider for Disposition of Residual Incremental Historical Smart Meter Costs - effective until August 31, 2015
I112: Rate Rider for Disposition of Stranded Meter costs - effective until April 30, 2015
I113: Rate Rider for Disposition of Stranded Meter Costs - effective until April 30, 2016
I114: Rate Rider for Disposition of Stranded Meter Costs - effective until April 30, 2017
I115: Rate Rider for Global Adjustment Sub Account Disposition - effective until April 30, 2016 Applicable only for Non RPP Customers
I116: Rate Rider for Global Adjustment Sub-Account Disposition (2014) - effective until April 28, 2016 Applicable only for Non-RPP Customers
I117: Rate Rider for Global Adjustment Sub-Account Disposition (2014) - effective until April 30, 2015 Applicable only for Non-RPP Customers
I118: Rate Rider for Global Adjustment Sub-Account Disposition (2014) - effective until December 30, 2015 Applicable only for Non-RPP Customers
I119: Rate Rider for Global Adjustment Sub-Account Disposition (2014) - effective until December 31, 2014 Applicable only for Non-RPP Customers
I120: Rate Rider for Global Adjustment Sub-Account Disposition (2014) - effective until December 31, 2015 Applicable only for Non-RPP Customers
I121: Rate Rider for Global Adjustment Sub-Account Disposition Applicable only for Non-RPP Customers - effective until April 30, 2015
I122: Rate Rider for Incremental Capital - Distribution Volumetric - effective until April 30, 2016
I123: Rate Rider for Incremental Capital - Service Charge - effective until April 30, 2016
I124: Rate Rider for Incremental Capital (2012) - effective until April 30, 2015
I125: Rate Rider for Lost Revenue Adjustment Mechanism Variance Account (LRAMVA) Recovery (2012 CDM Activities) - effective until April 30, 2015
I126: Rate Rider for Recover of Residual Historical Smart meter Costs - effective until June 30, 2014
I127: Rate Rider for Recovery of CGAAP/CWIP Differential - in effect until December 31, 2016
I128: Rate Rider for Recovery of Foregone Revenue - effective until April 30, 2015
I129: Rate Rider for Recovery of Forgone Revenue - effective until April 30, 2015
I130: Rate Rider for Recovery of Forgone Revenue - effective until December 31, 2014
I131: Rate Rider for Recovery of Green Energy Act related costs - effective until December 31, 2014
I132: Rate Rider for Recovery of Incremental Capital (2013) - in effect until the effective date of the next cost of service-based rate order
I133: Rate Rider for Recovery of Incremental Capital (2013) - in effect until the effective date of the next cost of service-based rate order
I134: Rate Rider for Recovery of Incremental Capital (2013) (per connection) - in effect until the effective date of the next cost of service-based rate order
I135: Rate Rider for Recovery of Incremental Capital (2013) (per connection)- in effect until the effective date of the next cost of service-based rate order
I136: Rate Rider for Recovery of Incremental Capital Costs
I137: Rate Rider for Recovery of Incremental Capital Costs - effective until April 30, 2015
I138: Rate Rider for Recovery of Incremental Capital Module Costs (2014) - in effect until the effective date of the next cost of service-based rate order
I139: Rate Rider for Recovery of Incremental Capital Module Costs (2014) - in effect until the effective date of the next cost of service-based rate order
I140: Rate Rider for Recovery of Lost Revenue Adjustment Mechanism ( LRAM)/Shared Savings Mechanism (SSM) (2012) - effective until August 31, 2014
I141: Rate Rider for Recovery of Lost Revenue Adjustment Mechanism (2013) - effective until December 31, 2014
I142: Rate Rider for Recovery of Lost Revenue Adjustment Mechanism (LRAM) - effective until April 30, 2016
I143: Rate Rider for Recovery of Lost Revenue Adjustment Mechanism (LRAM) (pre-2011 CDM Activities) - effective until April 30, 2015
I144: Rate Rider for Recovery of Lost Revenue Adjustment Mechanism (LRAM) (pre-2011 CDM Activities) (2013) - effective until April 30, 2015
I145: Rate Rider for Recovery of Lost Revenue Adjustment Mechanism (LRAM)/Shared Savings
I146: Rate Rider for Recovery of Lost Revenue Adjustment Mechanism (LRAM)/Shared Savings Mechanism (SSM) - effective until December 31, 2018 and applicable in the service area excluding the former service areas of Clinton Power and West Perth Power
I147: Rate Rider for Recovery of Lost Revenue Adjustment Mechanism (LRAM)/Shared Savings Mechanism (SSM) - effective until December 31, 2014 and applicable in the service area excluding the former service areas of Clinton Power and West Perth Power
I148: Rate Rider for Recovery of Lost Revenue Adjustment Mechanism (LRAM)/Shared Savings Mechanism (SSM) - effective until December 31, 2014 and applicable only in the former service area of Clinton Power
I149: Rate Rider for Recovery of Lost Revenue Adjustment Mechanism (LRAM)/Shared Savings Mechanism (SSM) - effective until December 31, 2014 and applicable only in the former service area of West Perth Power
I150: Rate Rider for Recovery of Lost Revenue Adjustment Mechanism (LRAM)/Shared Savings Mechanism (SSM) - effective until December 31, 2014 and applicable in the service area excluding the former service area of Clinton Power
I151: Rate Rider for Recovery of Lost Revenue Adjustment Mechanism (LRAM)/Shared Savings Mechanism (SSM) - effective until March 31, 2016
I152: Rate Rider for Recovery of Lost Revenue Adjustment Mechanism (LRAM)/Shared Savings Mechanism (SSM) (2012) - effective until August 31, 2014
I153: Rate Rider for Recovery of Lost Revenue Adjustment Mechanism (LRAM)/Shared Savings Mechanism (SSM) Recovery - effective until April 30, 2015
I154: Rate Rider for Recovery of Lost Revenue Adjustment Mechanism Variance Account (LRAMVA) (2014) - effective until April 30, 2015
I155: Rate Rider for Recovery of Residual Historical Smart Meter Costs - effective July 1, 2012 - April 30, 2016
I156: Rate Rider for Recovery of Smart Meter Incremental Revenue Requirement - effective until the date of the next cost of service-based rate order
I157: Rate Rider for Recovery of Smart Meter Incremental Revenue Requirement - effective until the effective date of the next cost of service-based rate order, or October 31, 2017, whichever occurs earlier
I158: Rate Rider for Recovery of Smart Meter Incremental Revenue Requirement - in effect until the effective date of the next cost of service-based rate order
I159: Rate Rider for Recovery of Smart Meter Incremental Revenue Requirement - Non-Interval Metered - in effect until the effective date of the next cost of service-based rate order
I160: Rate Rider for Recovery of Smart Meter Incremental Revenue Requirements - in effect until the effective date of the next cost of service application
I161: Rate Rider for Recovery of Smart Meter Stranded Assets - effective until April 30, 2016
I162: Rate Rider for Recovery of Storm Damage Costs - effective until August 31, 2017
I163: Rate Rider for Recovery of Stranded Assets - effective until April 30, 2016
I164: Rate Rider for Recovery of Stranded Meter Assets - effective July 1, 2012 - April 30, 2016
I165: Rate Rider for Recovery of Stranded Meter Assets – effective until April 30, 2015
I166: Rate Rider for Recovery of Stranded Meter Assets - effective until April 30, 2016
I167: Rate Rider for Recovery of Stranded Meter Assets - effective until April 30, 2017
I168: Rate Rider for Recovery of Stranded Meter Assets - effective until August 31, 2015
I169: Rate Rider for Recovery of Stranded Meter Assets - effective until August 31, 2017
I170: Rate Rider for Recovery of Stranded Meter Assets - effective until December 31, 2014
I171: Rate Rider for Recovery of Stranded Meter Assets - effective until December 31, 2015
I172: Rate Rider for Recovery of Stranded Meter Assets - effective until June 30, 2016
I173: Rate Rider for Recovery of Stranded Meter Assets - effective until March 31, 2016
I174: Rate Rider for Recovery of Stranded Meter Assets - effective until May 31, 2014
I175: Rate Rider for Reversal of Deferral/Variance Account Disposition (2011) - effective until April 30, 2015
I176: Rate Rider for Smart Meter Disposition - effective until April 30, 2016
I177: Rate Rider for Smart Meter Incremental Revenue Requirement - in effect until the effective date of the next cost of service-based rate order
I178: Rate Rider for Smart Metering Entity Charge - effective until October 31, 2018
I179: Rate Rider for Stranded Meter Cost Recovery - effective until April 30, 2017
I180: Rate Rider for Tax Change
I181: Rate Rider for Tax Change - effective until April 30, 2015
I182: Rate Rider for Tax Change (2014) - effective until April 30, 2015
I183: Retail Transmission Rate - Line and Transformation Connection Service Rate
I184: Retail Transmission Rate - Line and Transformation Connection Service Rate - (less than 1,000 kW)
I185: Retail Transmission Rate - Line and Transformation Connection Service Rate - Interval Metered
I186: Retail Transmission Rate - Line and Transformation Connection Service Rate - Interval Metered (1,000 to 4,999 kW)
I187: Retail Transmission Rate - Line and Transformation Connection Service Rate - Interval Metered (less than 1,000 kW)
I188: Retail Transmission Rate - Line and Transformation Connection Service Rate - Interval Metered < 1,000 kW
I189: Retail Transmission Rate - Line and Transformation Connection Service Rate FOR ALL SERVICE AREAS EXCEPT HENSALL
I190: Retail Transmission Rate - Line and Transformation Connection Service Rate - Interval Metered > 1,000 kW
I191: Retail Transmission Rate - Line Connection Service Rate
I192: Retail Transmission Rate - Network Service Rate
I193: Retail Transmission Rate - Network Service Rate - (less than 1,000 kW)
I194: Retail Transmission Rate - Network Service Rate - Interval Metered
I195: Retail Transmission Rate - Network Service Rate - Interval Metered (1,000 to 4,999 kW)
I196: Retail Transmission Rate - Network Service Rate - Interval Metered (less than 1,000 kW)
I197: Retail Transmission Rate - Network Service Rate - Interval Metered > 1,000 kW
I198: Retail Transmission Rate - Transformation Connection Service Rate
I199: Rider for Global Adjustment Sub-Account Disposition (2012) - effective until April 30, 2016 Applicable only for Non-RPP Customers
I200: Rural or Remote Electricity Rate Protection Charge (RRRP)
... 14 more rows

Sheet 3. Rate Class Selection
A12: Select the appropriate rate classes as they appear on your most recent Board-Approved Tariff of Rates and Charges, excluding the MicroFit Class.
A14: How many classes are on your most recent Board-Approved Tariff of Rates and Charges? | J14: 4
A16: Select Your Rate Classes from the Blue Cells below. Please ensure that a rate class is assigned to each shaded cell.
B18: Rate Class Classification | Q18: # of duplicates
A19: 1 | B19: RESIDENTIAL R1 | P19: =COUNTIF($B$19:$J$40, B19) -> 1 | Q19: =COUNTIF(P19:P40, 2)/2 -> 0
A20: 2 | B20: RESIDENTIAL R2 | P20: =COUNTIF($B$19:$J$40, B20) -> 1
A21: 3 | B21: SEASONAL CUSTOMERS | P21: 1
A22: 4 | B22: STREET LIGHTING | P22: 1
P23: 0
P24: 0
P25: 0
P26: 0
P27: 0
P28: 0
P29: 0
P30: 0
P31: 0
P32: 0
P33: 0

Sheet 4. Hidden (hidden)
M1: Current Rate Classes | N1: Changed to Rate Classes | O1: Values in A that are NOT in B | P1: Values in B that are Not in A | Q1: Count of A | R1: Count of B
M2: RESIDENTIAL | N2: RESIDENTIAL | Q2: 3 | R2: 3
M3: STREET LIGHTING | N3: STREET LIGHTING
M4: STANDBY POWER | N4: STANDBY POWER
A24: RESIDENTIAL | B24: RESIDENTIAL Service Classification
A25: RESIDENTIAL
A26: RESIDENTIAL | B26: This classification refers to the supply of electrical energy to residential customers residing in detached, semi detached, town house (freehold or condominium) dwelling units, duplexes or triplexes. Suply will be limited up to a maximum of 200 amp @ 240/120 volt. Further servicing details are available in the distributor's Conditions of Service
A27: RESIDENTIAL
A28: RESIDENTIAL
A29: RESIDENTIAL
A30: RESIDENTIAL
A31: RESIDENTIAL
A32: RESIDENTIAL | B32: APPLICATION
A33: RESIDENTIAL
A34: RESIDENTIAL | B34: The application of these rates and charges shall be in accordance with the Licence of the Distributor and any Code or Order of the Board, and amendments thereto as approved by the Board, which may be applicable to the administration of this schedule.
A35: RESIDENTIAL
A36: RESIDENTIAL
A37: RESIDENTIAL | B37: No rates and charges for the distribution of electricity and charges to meet the costs of any work or service done or furnished for the purpose of the distribution of electricityshall be made except as prmitted by this schedule, unless required by the Distributor's Licence or a Code or Order of the Board, and amendments thereto as approved by the Board, or as specified herein.
A38: RESIDENTIAL
A39: RESIDENTIAL
A40: RESIDENTIAL
A41: RESIDENTIAL | B41: Unless specifically noted, this schedule does not contain any charges for the electricity commodity, be it under the Regulated Price Plan, a contract with a retailer or the wholesale market price, as applicable. In addition, the charges in the MONTHLY RATES AND CHARGES - Regulatory Component of this schedule fo not apply to a customer that is an embedded wholesale market participant.
A42: RESIDENTIAL
A43: RESIDENTIAL
A44: RESIDENTIAL | B44: It should be noted that this schedule does not list any charges, assessments or credits that are required by law to be invoiced by a distributor and that are not subject to Board approval, such as Debt Retirement Charge, the Global Adjustment, the Ontario Clean Energy Benefit and the HST.
A45: RESIDENTIAL
A46: RESIDENTIAL
A47: RESIDENTIAL
A48: RESIDENTIAL | B48: MONTHLY RATES AND CHARGES - Delivery Component (If applicable, Effective Date MUST be included in rate description)
A49: RESIDENTIAL | B49: Service Charge | H49: $ | I49: 19.94
A50: RESIDENTIAL | B50: Rate Rider for Recovery of Stranded Meter Assets – effective until April 30, 2015 | H50: $ | I50: 1.27
A51: RESIDENTIAL | B51: Rate Rider for Smart Metering Entity Charge - effective until October 31, 2018 | H51: $ | I51: 0.79
A52: RESIDENTIAL | B52: Distribution Volumetric Rate | H52: $/kWh | I52: 0.0146
A53: RESIDENTIAL | B53: Low Voltage Service Rate | H53: $/kWh | I53: 0.0034
A54: RESIDENTIAL | B54: Retail Transmission Rate - Network Service Rate | H54: $/kWh | I54: 0.006
A55: RESIDENTIAL | B55: Retail Transmission Rate - Line and Transformation Connection Service Rate | H55: $/kWh | I55: 0.0041
A56: RESIDENTIAL
A57: RESIDENTIAL
A58: RESIDENTIAL
A59: RESIDENTIAL
A60: RESIDENTIAL
A61: RESIDENTIAL
A62: RESIDENTIAL
A63: RESIDENTIAL
A64: RESIDENTIAL
A65: RESIDENTIAL
A66: RESIDENTIAL
A67: RESIDENTIAL
A68: RESIDENTIAL
A69: RESIDENTIAL
A70: RESIDENTIAL
A71: RESIDENTIAL
A72: RESIDENTIAL
A73: RESIDENTIAL
A74: RESIDENTIAL
A75: RESIDENTIAL
A76: RESIDENTIAL
A77: RESIDENTIAL
A78: RESIDENTIAL
A79: RESIDENTIAL | B79: MONTHLY RATES AND CHARGES - Regulatory Component
A80: RESIDENTIAL
A81: RESIDENTIAL | B81: Wholesale Market Service Rate | H81: $/kWh | I81: 0.0044
A82: RESIDENTIAL | B82: Rural or Remote Electricity Rate Protection Charge (RRRP) | H82: $/kWh | I82: 0.0013
A83: RESIDENTIAL | B83: Standard Supply Service - Administrative Charge (if applicable) | H83: $ | I83: 0.25
A84: RESIDENTIAL
A87: GENERAL SERVICE LESS THAN 50 KW | B87: GENERAL SERVICE LESS THAN 50 KW Service Classification
A88: GENERAL SERVICE LESS THAN 50 KW
A89: GENERAL SERVICE LESS THAN 50 KW | B89: This classification refers to a non-residential account taking electricity at 750 volts or less whose monthly peak demand is less than or is expected to be less than 50 kW. Further servicing details are available in the distributor's Conditions of Service.
A90: GENERAL SERVICE LESS THAN 50 KW
A91: GENERAL SERVICE LESS THAN 50 KW
A92: GENERAL SERVICE LESS THAN 50 KW
A93: GENERAL SERVICE LESS THAN 50 KW
A94: GENERAL SERVICE LESS THAN 50 KW
A95: GENERAL SERVICE LESS THAN 50 KW | B95: APPLICATION
A96: GENERAL SERVICE LESS THAN 50 KW
A97: GENERAL SERVICE LESS THAN 50 KW | B97: The application of these rates and charges shall be in accordance with the Licence of the Distributor and any Code or Order of the Board, and amendments thereto as approved by the Board, which may be applicable to the administration of this schedule.
A98: GENERAL SERVICE LESS THAN 50 KW
A99: GENERAL SERVICE LESS THAN 50 KW
A100: GENERAL SERVICE LESS THAN 50 KW | B100: No rates and charges for the distribution of electricity and charges to meet the costs of any work or service done or furnished for the purpose of the distribution of electricityshall be made except as prmitted by this schedule, unless required by the Distributor's Licence or a Code or Order of the Board, and amendments thereto as approved by the Board, or as specified herein.
A101: GENERAL SERVICE LESS THAN 50 KW
A102: GENERAL SERVICE LESS THAN 50 KW
A103: GENERAL SERVICE LESS THAN 50 KW
A104: GENERAL SERVICE LESS THAN 50 KW | B104: Unless specifically noted, this schedule does not contain any charges for the electricity commodity, be it under the Regulated Price Plan, a contract with a retailer or the wholesale market price, as applicable. In addition, the charges in the MONTHLY RATES AND CHARGES - Regulatory Component of this schedule fo not apply to a customer that is an embedded wholesale market participant.
A105: GENERAL SERVICE LESS THAN 50 KW
A106: GENERAL SERVICE LESS THAN 50 KW
A107: GENERAL SERVICE LESS THAN 50 KW | B107: It should be noted that this schedule does not list any charges, assessments or credits that are required by law to be invoiced by a distributor and that are not subject to Board approval, such as Debt Retirement Charge, the Global Adjustment, the Ontario Clean Energy Benefit and the HST.
A108: GENERAL SERVICE LESS THAN 50 KW
A109: GENERAL SERVICE LESS THAN 50 KW
A110: GENERAL SERVICE LESS THAN 50 KW
A111: GENERAL SERVICE LESS THAN 50 KW | B111: MONTHLY RATES AND CHARGES - Delivery Component (If applicable, Effective Date MUST be included in rate description)
A112: GENERAL SERVICE LESS THAN 50 KW | B112: Service Charge | H112: $ | I112: 43.19
A113: GENERAL SERVICE LESS THAN 50 KW | B113: Rate Rider for Recovery of Stranded Meter Assets – effective until April 30, 2015 | H113: $ | I113: 5.26
A114: GENERAL SERVICE LESS THAN 50 KW | B114: Rate Rider for Smart Metering Entity Charge - effective until October 31, 2018 | H114: $ | I114: 0.79
A115: GENERAL SERVICE LESS THAN 50 KW | B115: Distribution Volumetric Rate | H115: $/kWh | I115: 0.0088
A116: GENERAL SERVICE LESS THAN 50 KW | B116: Low Voltage Service Rate | H116: $/kWh | I116: 0.003
A117: GENERAL SERVICE LESS THAN 50 KW | B117: Retail Transmission Rate - Network Service Rate | H117: $/kWh | I117: 0.0055
A118: GENERAL SERVICE LESS THAN 50 KW | B118: Retail Transmission Rate - Line and Transformation Connection Service Rate | H118: $/kWh | I118: 0.0039
A119: GENERAL SERVICE LESS THAN 50 KW
A120: GENERAL SERVICE LESS THAN 50 KW
A121: GENERAL SERVICE LESS THAN 50 KW
A122: GENERAL SERVICE LESS THAN 50 KW
A123: GENERAL SERVICE LESS THAN 50 KW
A124: GENERAL SERVICE LESS THAN 50 KW
A125: GENERAL SERVICE LESS THAN 50 KW
A126: GENERAL SERVICE LESS THAN 50 KW
A127: GENERAL SERVICE LESS THAN 50 KW
A128: GENERAL SERVICE LESS THAN 50 KW
A129: GENERAL SERVICE LESS THAN 50 KW
A130: GENERAL SERVICE LESS THAN 50 KW
A131: GENERAL SERVICE LESS THAN 50 KW
A132: GENERAL SERVICE LESS THAN 50 KW
A133: GENERAL SERVICE LESS THAN 50 KW
A134: GENERAL SERVICE LESS THAN 50 KW
A135: GENERAL SERVICE LESS THAN 50 KW
A136: GENERAL SERVICE LESS THAN 50 KW
A137: GENERAL SERVICE LESS THAN 50 KW
A138: GENERAL SERVICE LESS THAN 50 KW
A139: GENERAL SERVICE LESS THAN 50 KW
A140: GENERAL SERVICE LESS THAN 50 KW
A141: GENERAL SERVICE LESS THAN 50 KW
A142: GENERAL SERVICE LESS THAN 50 KW | B142: MONTHLY RATES AND CHARGES - Regulatory Component
A143: GENERAL SERVICE LESS THAN 50 KW
A144: GENERAL SERVICE LESS THAN 50 KW | B144: Wholesale Market Service Rate | H144: =H81 -> $/kWh | I144: 0.0044
A145: GENERAL SERVICE LESS THAN 50 KW | B145: Rural or Remote Electricity Rate Protection Charge (RRRP) | H145: $/kWh | I145: 0.0013
A146: GENERAL SERVICE LESS THAN 50 KW | B146: Standard Supply Service - Administrative Charge (if applicable) | H146: $ | I146: 0.25
A147: GENERAL SERVICE LESS THAN 50 KW
A150: GENERAL SERVICE 50 TO 4,999 KW | B150: GENERAL SERVICE 50 TO 4,999 KW Service Classification
A151: GENERAL SERVICE 50 TO 4,999 KW
A152: GENERAL SERVICE 50 TO 4,999 KW | B152: This classification refers to a non residential account whose monthly average peak demand is equal to or greater than, or is espected to be equal to or greater than 50 kW but less then 5,000 kW. Further servicing details are available in the distributor's Conditions of Service.
A153: GENERAL SERVICE 50 TO 4,999 KW
A154: GENERAL SERVICE 50 TO 4,999 KW
A155: GENERAL SERVICE 50 TO 4,999 KW
A156: GENERAL SERVICE 50 TO 4,999 KW
A157: GENERAL SERVICE 50 TO 4,999 KW
A158: GENERAL SERVICE 50 TO 4,999 KW | B158: APPLICATION
A159: GENERAL SERVICE 50 TO 4,999 KW
A160: GENERAL SERVICE 50 TO 4,999 KW | B160: The application of these rates and charges shall be in accordance with the Licence of the Distributor and any Code or Order of the Board, and amendments thereto as approved by the Board, which may be applicable to the administration of this schedule.
A161: GENERAL SERVICE 50 TO 4,999 KW
A162: GENERAL SERVICE 50 TO 4,999 KW
A163: GENERAL SERVICE 50 TO 4,999 KW | B163: No rates and charges for the distribution of electricity and charges to meet the costs of any work or service done or furnished for the purpose of the distribution of electricityshall be made except as prmitted by this schedule, unless required by the Distributor's Licence or a Code or Order of the Board, and amendments thereto as approved by the Board, or as specified herein.
A164: GENERAL SERVICE 50 TO 4,999 KW
A165: GENERAL SERVICE 50 TO 4,999 KW
A166: GENERAL SERVICE 50 TO 4,999 KW
A167: GENERAL SERVICE 50 TO 4,999 KW | B167: Unless specifically noted, this schedule does not contain any charges for the electricity commodity, be it under the Regulated Price Plan, a contract with a retailer or the wholesale market price, as applicable. In addition, the charges in the MONTHLY RATES AND CHARGES - Regulatory Component of this schedule fo not apply to a customer that is an embedded wholesale market participant.
A168: GENERAL SERVICE 50 TO 4,999 KW
A169: GENERAL SERVICE 50 TO 4,999 KW
A170: GENERAL SERVICE 50 TO 4,999 KW | B170: It should be noted that this schedule does not list any charges, assessments or credits that are required by law to be invoiced by a distributor and that are not subject to Board approval, such as Debt Retirement Charge, the Global Adjustment, the Ontario Clean Energy Benefit and the HST.
A171: GENERAL SERVICE 50 TO 4,999 KW
A172: GENERAL SERVICE 50 TO 4,999 KW
A173: GENERAL SERVICE 50 TO 4,999 KW
A174: GENERAL SERVICE 50 TO 4,999 KW | B174: MONTHLY RATES AND CHARGES - Delivery Component (If applicable, Effective Date MUST be included in rate description)
A175: GENERAL SERVICE 50 TO 4,999 KW | B175: Service Charge | H175: $ | I175: 304.2
A176: GENERAL SERVICE 50 TO 4,999 KW | B176: Distribution Volumetric Rate | H176: $/kW | I176: 2.7354
A177: GENERAL SERVICE 50 TO 4,999 KW | B177: Low Voltage Service Rate | H177: $/kW | I177: 1.387
A178: GENERAL SERVICE 50 TO 4,999 KW | B178: Retail Transmission Rate - Network Service Rate | H178: $/kW | I178: 2.3629
A179: GENERAL SERVICE 50 TO 4,999 KW | B179: Retail Transmission Rate - Line and Transformation Connection Service Rate | H179: $/kW | I179: 1.6344
A180: GENERAL SERVICE 50 TO 4,999 KW
A181: GENERAL SERVICE 50 TO 4,999 KW
A182: GENERAL SERVICE 50 TO 4,999 KW
A183: GENERAL SERVICE 50 TO 4,999 KW
A184: GENERAL SERVICE 50 TO 4,999 KW
A185: GENERAL SERVICE 50 TO 4,999 KW
A186: GENERAL SERVICE 50 TO 4,999 KW
A187: GENERAL SERVICE 50 TO 4,999 KW
A188: GENERAL SERVICE 50 TO 4,999 KW
A189: GENERAL SERVICE 50 TO 4,999 KW
A190: GENERAL SERVICE 50 TO 4,999 KW
A191: GENERAL SERVICE 50 TO 4,999 KW
A192: GENERAL SERVICE 50 TO 4,999 KW
A193: GENERAL SERVICE 50 TO 4,999 KW
A194: GENERAL SERVICE 50 TO 4,999 KW
A195: GENERAL SERVICE 50 TO 4,999 KW
A196: GENERAL SERVICE 50 TO 4,999 KW
A197: GENERAL SERVICE 50 TO 4,999 KW
A198: GENERAL SERVICE 50 TO 4,999 KW
A199: GENERAL SERVICE 50 TO 4,999 KW
A200: GENERAL SERVICE 50 TO 4,999 KW
A201: GENERAL SERVICE 50 TO 4,999 KW
A202: GENERAL SERVICE 50 TO 4,999 KW
A203: GENERAL SERVICE 50 TO 4,999 KW
A204: GENERAL SERVICE 50 TO 4,999 KW
A205: GENERAL SERVICE 50 TO 4,999 KW | B205: MONTHLY RATES AND CHARGES - Regulatory Component
A206: GENERAL SERVICE 50 TO 4,999 KW
A207: GENERAL SERVICE 50 TO 4,999 KW | B207: Wholesale Market Service Rate | H207: =H81 -> $/kWh | I207: 0.0044
A208: GENERAL SERVICE 50 TO 4,999 KW | B208: Rural or Remote Electricity Rate Protection Charge (RRRP) | H208: $/kWh | I208: 0.0013
A209: GENERAL SERVICE 50 TO 4,999 KW | B209: Standard Supply Service - Administrative Charge (if applicable) | H209: $ | I209: 0.25
A210: GENERAL SERVICE 50 TO 4,999 KW
A213: UNMETERED SCATTERED LOAD | B213: UNMETERED SCATTERED LOAD Service Classification
A214: UNMETERED SCATTERED LOAD
A215: UNMETERED SCATTERED LOAD | B215: This classification refers to a non-residiential account taking electricity at 240/120 or 120 volts whose monthly peak demand is less than or expected to be less than 50 kW and is unmetered. A detailed calculation or the load will be calculated for billing purposes. Further servicing detials are available in the distributor's Conditions of Service.
A216: UNMETERED SCATTERED LOAD
A217: UNMETERED SCATTERED LOAD
A218: UNMETERED SCATTERED LOAD
A219: UNMETERED SCATTERED LOAD
A220: UNMETERED SCATTERED LOAD
A221: UNMETERED SCATTERED LOAD | B221: APPLICATION
A222: UNMETERED SCATTERED LOAD
A223: UNMETERED SCATTERED LOAD | B223: The application of these rates and charges shall be in accordance with the Licence of the Distributor and any Code or Order of the Board, and amendments thereto as approved by the Board, which may be applicable to the administration of this schedule.
A224: UNMETERED SCATTERED LOAD
A225: UNMETERED SCATTERED LOAD
... 225 more rows

Sheet 6. hidden (hidden)
E1: Billed kWh for Non-RPP Customers | F1: Estimated kW for Non-RPP Customers | G1: Distribution Revenue 1 | H1: 1590 Recovery Share Proportion* | I1: 1595 Recovery Share Proportion (2008) 2 | J1: 1595 Recovery Share Proportion (2009) 2 | K1: 1595 Recovery Share Proportion (2010) 2 | L1: 1595 Recovery Share Proportion (2011) 2 | M1: 1568 LRAM Variance Account Class Allocation
A2: Rate Class | B2: Unit | C2: Metered kWh | D2: Metered kW
A3: RESIDENTIAL | B3: $/kWh | C3: 0 | D3: 0 | E3: 0 | G3: 0 | H3: 0 | I3: 0 | J3: 0 | K3: 0 | L3: 0 | M3: 0 | N3: 0 | O3: 0
A4: STREET LIGHTING | B4: $/kW | C4: 0 | D4: 0 | E4: 0 | G4: 0 | H4: 0 | I4: 0 | J4: 0 | K4: 0 | L4: 0 | M4: 0 | N4: 0 | O4: 0
A5: STANDBY POWER | B5: 0 | C5: 0 | D5: 0 | E5: 0 | G5: 0 | H5: 0 | I5: 0 | J5: 0 | K5: 0 | L5: 0 | M5: 0 | N5: 0 | O5: 0

Sheet 4. Growth Factor - NUM_CALC1
A13: ="Input the billing determinants associated with " & '1. Information Sheet'!F14 & "'s " & '1. Information Sheet'!F48 & ". Input the current approved distribution rates. Sheets 4 & 5 calculate the NUMERATOR portion of the growth factor calculation." -> Input the billing determinants associated with Algoma Power Inc.'s Revenues Based on 2019 Board-Approved Distribution Demand. Input the current approved distribution rates. Sheets 4 & 5 calculate the NUMERATOR portion of the growth factor calculation.
C15: =RIGHT('1. Information Sheet'!F48,LEN('1. Information Sheet'!F48)-18) -> 2019 Board-Approved Distribution Demand | G15: =IF('1. Information Sheet'!F26="COS","Proposed Distribution Rates","Current Approved Distribution Rates") -> Current Approved Distribution Rates
A16: Rate Class | B16: Units | C16: Billed Customers or Connections | D16: Billed kWh | E16: Billed kW (if applicable) | G16: Monthly Service Charge | H16: Distribution Volumetric Rate kWh | I16: Distribution Volumetric Rate kW
A17: RESIDENTIAL R1 | B17: $/kWh | C17: 9112.845106 | D17: 103931741.8 | E17: 0 | G17: 108.56 | H17: 0.0639 | I17: 0
A18: RESIDENTIAL R2 | B18: $/kW | C18: 37.28222026 | D18: 85867986.52 | E18: 196648.0919 | G18: 1112.25 | H18: 0 | I18: 18.9827
A19: SEASONAL CUSTOMERS | B19: $/kWh | C19: 2960.185852 | D19: 5439364.928 | E19: 0 | G19: 58.75 | H19: 0.1703 | I19: 0
A20: STREET LIGHTING | B20: $/kWh | C20: 1117.083333 | D20: 595435.1142 | E20: 0 | G20: 1.37 | H20: 0.3279 | I20: 0

Sheet 5. Growth Factor - NUM_CALC2
A12: =IF('1. Information Sheet'!F26="COS", "Calculation of " & '1. Information Sheet'!K26 & " Revenue Requirement. No input required.", "Calculation of pro forma " & '1. Information Sheet'!F34 & " Revenues. No input required.") -> Calculation of pro forma 2019 Revenues. No input required.
C14: ='4. Growth Factor - NUM_CALC1'!C15 -> 2019 Board-Approved Distribution Demand | G14: ='4. Growth Factor - NUM_CALC1'!G15:I15 -> Current Approved Distribution Rates
A15: Rate Class | C15: Billed Customers or Connections | D15: Billed kWh | E15: Billed kW (if applicable) | G15: Monthly Service Charge | H15: Distribution Volumetric Rate kWh | I15: Distribution Volumetric Rate kW | K15: Service Charge Revenue | L15: Distribution Volumetric Rate Revenue kWh | M15: Distribution Volumetric Rate Revenue kW | N15: Revenues from Rates | P15: Service Charge % Revenue | Q15: Distribution Volumetric Rate % Revenue kWh | R15: Distribution Volumetric Rate % Revenue kW | S15: Total % Revenue
A16: Total | C16: =SUM(C15:C16) -> 0 | D16: 0 | E16: 0 | G16: D | H16: E | I16: F | K16: =SUM(K15:K16) -> 0 | L16: 0 | M16: 0 | N16: 0 | P16: K = G / J | Q16: L = H / J | R16: M = I / J | S16: =SUM(S15:S16) -> 0
A17: RESIDENTIAL R1 | C17: 9112.845106 | D17: 103931741.8 | E17: 0 | G17: 108.56 | H17: 0.0639 | I17: 0 | K17: =G17*C17*12 -> 11871485.58 | L17: =H17*D17 -> 6641238.304 | M17: 0 | N17: =SUM(K17,L17,M17) -> 18512723.88 | P17: =IF(ISERROR(K17/N17),0,ROUND(K17/N17,3)) -> 0.641 | Q17: =IF(ISERROR(L17/N17),0,ROUND(L17/N17,3)) -> 0.359 | R17: =IF(ISERROR(M17/N17),0,ROUND(M17/N17,3)) -> 0 | S17: =N17/N21 -> 0.7128474981
A18: RESIDENTIAL R2 | C18: 37.28222026 | D18: 85867986.52 | E18: 196648.0919 | G18: 1112.25 | H18: 0 | I18: 18.9827 | K18: =G18*C18*12 -> 497605.7938 | L18: 0 | M18: =I18*E18 -> 3732911.735 | N18: =SUM(K18,L18,M18) -> 4230517.529 | P18: =IF(ISERROR(K18/N18),0,ROUND(K18/N18,3)) -> 0.118 | Q18: =IF(ISERROR(L18/N18),0,ROUND(L18/N18,3)) -> 0 | R18: =IF(ISERROR(M18/N18),0,ROUND(M18/N18,3)) -> 0.882 | S18: =N18/N21 -> 0.1628995201
A19: SEASONAL CUSTOMERS | C19: 2960.185852 | D19: 5439364.928 | E19: 0 | G19: 58.75 | H19: 0.1703 | I19: 0 | K19: =G19*C19*12 -> 2086931.026 | L19: =H19*D19 -> 926323.8473 | M19: 0 | N19: =SUM(K19,L19,M19) -> 3013254.873 | P19: =IF(ISERROR(K19/N19),0,ROUND(K19/N19,3)) -> 0.693 | Q19: =IF(ISERROR(L19/N19),0,ROUND(L19/N19,3)) -> 0.307 | R19: =IF(ISERROR(M19/N19),0,ROUND(M19/N19,3)) -> 0 | S19: =N19/N21 -> 0.116027831
A20: STREET LIGHTING | C20: 1117.083333 | D20: 595435.1142 | E20: 0 | G20: 1.37 | H20: 0.3279 | I20: 0 | K20: =G20*C20*12 -> 18364.85 | L20: =H20*D20 -> 195243.1739 | M20: 0 | N20: =SUM(K20,L20,M20) -> 213608.0239 | P20: =IF(ISERROR(K20/N20),0,ROUND(K20/N20,3)) -> 0.086 | Q20: =IF(ISERROR(L20/N20),0,ROUND(L20/N20,3)) -> 0.914 | R20: =IF(ISERROR(M20/N20),0,ROUND(M20/N20,3)) -> 0 | S20: =N20/N21 -> 0.008225150789
A21: Total | C21: =SUM(C17:C20) -> 13227.39651 | D21: =SUM(D17:D20) -> 195834528.4 | E21: =SUM(E17:E20) -> 196648.0919 | K21: =SUM(K17:K20) -> 14474387.25 | L21: =SUM(L17:L20) -> 7762805.325 | M21: =SUM(M17:M20) -> 3732911.735 | N21: =SUM(N17:N20) -> 25970104.31 | S21: =SUM(S17:S20) -> 1

Sheet 9. STS - Billing Det & Rate HID (hidden)
A11: Shared Tax Savings
A12: ="Enter your " & '1. Information Sheet'!F36 & " Board-Approved Billing Determinents into columns B, C and D." -> Enter your EB-2019-0019 Board-Approved Billing Determinents into columns B, C and D.
A16: Rate Class | B16: Units | C16: Re-based Billed Customers or Connections | D16: Re-based Billed kWh | E16: Re-based Billed kW (if applicable) | G16: ='1. Information Sheet'!F36 &" Base Monthly Service Charge" -> EB-2019-0019 Base Monthly Service Charge | H16: ='1. Information Sheet'!F36 &" Base Distribution Volumetric Rate kWh" -> EB-2019-0019 Base Distribution Volumetric Rate kWh | I16: ='1. Information Sheet'!F36 &" Base Distribution Volumetric Rate kW" -> EB-2019-0019 Base Distribution Volumetric Rate kW
A17: RESIDENTIAL R1 | B17: $/kWh | C17: 9112.845106 | D17: 103931741.8 | E17: 0 | G17: 108.56 | H17: 0.0639 | I17: 0
A18: RESIDENTIAL R2 | B18: $/kW | C18: 37.28222026 | D18: 85867986.52 | E18: 196648.0919 | G18: 1111.6 | H18: 0 | I18: 18.9718
A19: SEASONAL CUSTOMERS | B19: $/kWh | C19: 2960.185852 | D19: 5439364.928 | E19: 0 | G19: 54.75 | H19: 0.1964 | I19: 0
A20: STREET LIGHTING | B20: $/kWh | C20: 1117.083333 | D20: 595435.1142 | E20: 0 | G20: 1.39 | H20: 0.3316 | I20: 0

Sheet 6. Rev_Requ_Check
A8: Applicants Rate Base | C8: =IF('1. Information Sheet'!F26="COS",CONCATENATE('1. Information Sheet'!K26," Test Year COS Rebasing"),CONCATENATE("Last COS Rebasing: ",'1. Information Sheet'!F34)) -> Last COS Rebasing: 2019
A9: Average Net Fixed Assets
A10: Gross Fixed Assets - Re-based Opening | C10: 192209609.7 | D10: A
A11: Add: CWIP Re-based Opening | C11: 1856895.45 | D11: B
A12: Re-based Capital Additions | C12: 8485738.06 | D12: C
A13: Re-based Capital Disposals | C13: 0 | D13: D
A14: Re-based Capital Retirements | C14: 0 | D14: E
A15: Deduct: CWIP Re-based Closing | C15: -1856895.45 | D15: F
A16: Gross Fixed Assets - Re-based Closing | C16: =SUM(C10:C15) -> 200695347.7 | D16: G
A17: Average Gross Fixed Assets | E17: =(C10+C16)/2 -> 196452478.7 | F17: H = ( A + G ) / 2
A19: Accumulated Depreciation - Re-based Opening | C19: 76945669.37 | D19: I
A20: Re-based Depreciation Expense | C20: 4497643 | D20: J
A21: Re-based Disposals | C21: 0 | D21: K
A22: Re-based Retirements | C22: 0 | D22: L
A23: Accumulated Depreciation - Re-based Closing | C23: =SUM(C19:C22) -> 81443312.37 | D23: M
A24: Average Accumulated Depreciation | E24: =SUM(C19,C23)/2 -> 79194490.87 | F24: N = ( I + M ) / 2
A26: Average Net Fixed Assets | E26: =E17-E24 -> 117257987.8 | F26: O = H - N
A28: Working Capital Allowance
A29: Working Capital Allowance Base | C29: 34872666.71 | D29: P
A30: Working Capital Allowance Rate | C30: 0.075 | D30: Q
A31: Working Capital Allowance | E31: =C29*C30 -> 2615450.004 | F31: R = P * Q
A33: Rate Base | E33: =SUM(E26,E31) -> 119873437.8 | F33: S = O + R
A35: Return on Rate Base
A36: Deemed ShortTerm Debt % | C36: 0.04 | D36: T | E36: =E33*C36 -> 4794937.513 | F36: W = S * T
A37: Deemed Long Term Debt % | C37: 0.56 | D37: U | E37: =E33*C37 -> 67129125.19 | F37: X = S * U
A38: Deemed Equity % | C38: =1-C36-C37 -> 0.4 | D38: V | E38: =E33*C38 -> 47949375.13 | F38: Y = S * V
A40: Short Term Interest | C40: 0.0282 | D40: Z | E40: =E36*C40 -> 135217.2379 | F40: AC = W * Z
A41: Long Term Interest | C41: 0.0495 | D41: AA | E41: =E37*C41 -> 3322891.697 | F41: AD = X * AA
A42: Return on Equity | C42: 0.0898 | D42: AB | E42: =E38*C42 -> 4305853.887 | F42: AE = Y * AB
A43: Return on Rate Base | E43: =SUM(E40:E42) -> 7763962.822 | F43: AF = AC + AD + AE
A45: Distribution Expenses
A46: OM&A Expenses | C46: 13677187.39 | D46: AG
A47: Amortization | C47: 4043341 | D47: AH
A48: Ontario Capital Tax | C48: 0 | D48: AI
A49: Grossed Up Taxes/PILs | C49: 333974.0719 | D49: AJ
A50: Low Voltage | C50: 0 | D50: AK
A51: Transformer Allowance | C51: 87159.1663 | D51: AL
A52: Property Tax | C52: 118599.96 | D52: AM
D53: AN
D54: AO
E55: =SUM(C46:C54) -> 18260261.59 | F55: AP = SUM ( AG : AO )
A56: Revenue Offsets
A57: Specific Service Charges | C57: -69365.88 | D57: AQ
A58: Late Payment Charges | C58: -33000 | D58: AR
A59: Other Distribution Income | C59: -484977.96 | D59: AS
A60: Other Income and Deductions | C60: 535454.6 | D60: AT | E60: =SUM(C57:C60) -> -51889.24 | F60: AU = SUM ( AQ : AT )
A62: Revenue Requirement from Distribution Rates | E62: =SUM(E60,E55,E43) -> 25972335.17 | F62: AV = AF + AP + AU
A64: Rate Classes Revenue
A65: Rate Classes Revenue - Total (Sheet 5) | E65: 25970104.31 | F65: AW
A67: Difference | E67: =E62-E65 -> 2230.86305 | F67: AZ = AV - AW
A69: Difference (Percentage - should be less than ±1%) | E69: =IF(ISERROR(E67/E65),0,E67/E65) -> 8.590119716e-05 | F69: BA = AZ / AW

Sheet 7. Growth Factor - DEN_CALC
A12: ="Input the billing determinants associated with "&'1. Information Sheet'!F14&"'s "&'1. Information Sheet'!F49&". This sheet calculates the DENOMINATOR portion of the growth factor calculation." -> Input the billing determinants associated with Algoma Power Inc.'s Revenues Based on 2018 Actual Distribution Demand. This sheet calculates the DENOMINATOR portion of the growth factor calculation.
A13: Pro forma Revenue Calculation.
C14: =RIGHT('1. Information Sheet'!F49,LEN('1. Information Sheet'!F49)-18) -> 2018 Actual Distribution Demand | G14: ='4. Growth Factor - NUM_CALC1'!G15 -> Current Approved Distribution Rates
A15: Rate Class | C15: Billed Customers or Connections | D15: Billed kWh | E15: Billed kW | G15: Monthly Service Charge | H15: Distribution Volumetric Rate kWh | I15: Distribution Volumetric Rate kW | K15: Service Charge Revenue | L15: Distribution Volumetric Rate Revenue kWh | M15: Distribution Volumetric Rate Revenue kW | N15: Total Revenue By Rate Class | P15: Service Charge % Revenue | Q15: Distribution Volumetric Rate % Revenue kWh | R15: Distribution Volumetric Rate % Revenue kW | S15: Total % Revenue
A16: Total | C16: =SUM(C15:C16) -> 0 | D16: =SUM(D15:D16) -> 0 | E16: =SUM(E15:E16) -> 0 | G16: D | H16: E | I16: F | K16: =SUM(K15:K16) -> 0 | L16: =SUM(L15:L16) -> 0 | M16: =SUM(M15:M16) -> 0 | N16: =SUM(N15:N16) -> 0 | P16: K = G / Jtotal | Q16: L = H / Jtotal | R16: M = I / Jtotal | S16: =SUM(S15:S16) -> 0
A17: RESIDENTIAL R1 | C17: 8677.804305 | D17: 99269363.07 | E17: 0 | G17: 108.56 | H17: 0.0639 | I17: 0 | K17: =G17*C17*12 -> 11304749.22 | L17: =H17*D17 -> 6343312.3 | M17: 0 | N17: =SUM(K17,L17,M17) -> 17648061.52 | P17: =IF(ISERROR(K17/N21),0,ROUND(K17/N21,3)) -> 0.438 | Q17: =IF(ISERROR(L17/N21),0,ROUND(L17/N21,3)) -> 0.246 | R17: =IF(ISERROR(M17/N21),0,ROUND(M17/N21,3)) -> 0 | S17: =N17/N21 -> 0.6841912577
A18: RESIDENTIAL R2 | C18: 39.00920732 | D18: 99385190.08 | E18: 229528.6281 | G18: 1112.25 | H18: 0 | I18: 18.9827 | K18: =G18*C18*12 -> 520655.89 | L18: 0 | M18: 4357073.088 | N18: =SUM(K18,L18,M18) -> 4877728.978 | P18: =IF(ISERROR(K18/N21),0,ROUND(K18/N21,3)) -> 0.02 | Q18: =IF(ISERROR(L18/N21),0,ROUND(L18/N21,3)) -> 0 | R18: =IF(ISERROR(M18/N21),0,ROUND(M18/N21,3)) -> 0.169 | S18: =N18/N21 -> 0.1891028949
A19: SEASONAL CUSTOMERS | C19: 3017.74172 | D19: 5500303.158 | E19: 0 | G19: 58.75 | H19: 0.1703 | I19: 0 | K19: =G19*C19*12 -> 2127507.913 | L19: 936701.6279 | M19: 0 | N19: =SUM(K19,L19,M19) -> 3064209.541 | P19: =IF(ISERROR(K19/N21),0,ROUND(K19/N21,3)) -> 0.082 | Q19: =IF(ISERROR(L19/N21),0,ROUND(L19/N21,3)) -> 0.036 | R19: =IF(ISERROR(M19/N21),0,ROUND(M19/N21,3)) -> 0 | S19: =N19/N21 -> 0.1187952216
A20: STREET LIGHTING | C20: 1067.083333 | D20: 568783.7849 | E20: 0 | G20: 1.37 | H20: 0.3279 | I20: 0 | K20: =G20*C20*12 -> 17542.85 | L20: 186504.2031 | M20: 0 | N20: =SUM(K20,L20,M20) -> 204047.0531 | P20: =IF(ISERROR(K20/N21),0,ROUND(K20/N21,3)) -> 0.001 | Q20: =IF(ISERROR(L20/N21),0,ROUND(L20/N21,3)) -> 0.007 | R20: =IF(ISERROR(M20/N21),0,ROUND(M20/N21,3)) -> 0 | S20: =N20/N21 -> 0.007910625747
A21: Total | C21: =SUM(C17:C20) -> 12801.63857 | D21: =SUM(D17:D20) -> 204723640.1 | E21: =SUM(E17:E20) -> 229528.6281 | K21: =SUM(K17:K20) -> 13970455.88 | L21: =SUM(L17:L20) -> 7466518.131 | M21: =SUM(M17:M20) -> 4357073.088 | N21: =SUM(N17:N20) -> 25794047.1 | S21: =SUM(S17:S20) -> 1

Sheet 7. Load Actual - HID (hidden)
A12: ="Calculation of Most Recent Revenue. Enter values into green shaded cells (" & '1. Information Sheet'!#REF! & ")" -> 
A15: Rate Class | C15: Billed Customers or Connections | D15: Billed kWh | E15: Billed kW | G15: Base Service Charge | H15: Base Distribution Volumetric Rate kWh | I15: Base Distribution Volumetric Rate kW | K15: Service Charge Revenue | L15: Distribution Volumetric Rate Revenue kWh | M15: Distribution Volumetric Rate Revenue kW | N15: Total Revenue By Rate Class | P15: Service Charge % Revenue | Q15: Distribution Volumetric Rate % Revenue kWh | R15: Distribution Volumetric Rate % Revenue kW | S15: Total % Revenue
C16: A | D16: B | E16: C | G16: D | H16: E | I16: F | K16: G = A * D *12 | L16: H = B * E | M16: I = C * F | N16: J = G + H + I | P16: K = G / J | Q16: L = H / J | R16: M = I / J | S16: N = J / R
A17: RESIDENTIAL R1 | C17: 8677.804305 | D17: 99269363.07 | E17: 0
A18: RESIDENTIAL R2 | C18: 39.00920732 | D18: 99385190.08 | E18: 229528.6281
A19: SEASONAL CUSTOMERS | C19: 3017.74172 | D19: 5500303.158 | E19: 0
A20: STREET LIGHTING | C20: 1067.083333 | D20: 568783.7849 | E20: 0

Sheet 8. Revenue Proportions
A12: Current Revenue from Rates
A13: This sheet is used to determine the applicant's most current allocation of revenues (after the most recent revenue to cost ratio adjustment, if applicable) to appropriately allocate the incremental revenue requirement to the classes.
C14: =IF('1. Information Sheet'!F26="COS", "Proposed Base Rates in Current CoS Application", "Current OEB-Approved Base Rates") -> Current OEB-Approved Base Rates | G14: ='4. Growth Factor - NUM_CALC1'!C15 -> 2019 Board-Approved Distribution Demand
A15: Rate Class | C15: Monthly Service Charge | D15: Distribution Volumetric Rate kWh | E15: Distribution Volumetric Rate kW | G15: Re-based Billed Customers or Connections | H15: Re-based Billed kWh | I15: Re-based Billed kW | K15: Current Base Service Charge Revenue | L15: Current Base Distribution Volumetric Rate kWh Revenue | M15: Current Base Distribution Volumetric Rate kW Revenue | N15: Total Current Base Revenue | P15: Service Charge % Total Revenue | Q15: Distribution Volumetric Rate % Total Revenue | R15: Distribution Volumetric Rate % Total Revenue | S15: Total % Revenue
A16: Total | C16: A | D16: B | E16: C | G16: D | H16: E | I16: F | K16: =SUM(K15:K16) -> 0 | L16: 0 | M16: 0 | N16: 0 | P16: L = G / Jtotal | Q16: M = H / Jtotal | R16: N = I / Jtotal | S16: =SUM(S15:S16) -> 0
A17: RESIDENTIAL R1 | C17: 108.56 | D17: 0.0639 | E17: 0 | G17: 9112.845106 | H17: 103931741.8 | I17: 0 | K17: =G17*C17*12 -> 11871485.58 | L17: =H17*D17 -> 6641238.304 | M17: 0 | N17: =SUM(K17,L17,M17) -> 18512723.88 | P17: =IF(ISERROR(K17/N21),0,K17/N21) -> 0.4571212128 | Q17: =IF(ISERROR(L17/N21),0,L17/N21) -> 0.2557262853 | R17: =IF(ISERROR(M17/N21),0,M17/N21) -> 0 | S17: =N17/N21 -> 0.7128474981
A18: RESIDENTIAL R2 | C18: 1112.25 | D18: 0 | E18: 18.9827 | G18: 37.28222026 | H18: 85867986.52 | I18: 196648.0919 | K18: =G18*C18*12 -> 497605.7938 | L18: 0 | M18: 3732911.735 | N18: =SUM(K18,L18,M18) -> 4230517.529 | P18: =IF(ISERROR(K18/N21),0,K18/N21) -> 0.01916071603 | Q18: =IF(ISERROR(L18/N21),0,L18/N21) -> 0 | R18: =IF(ISERROR(M18/N21),0,M18/N21) -> 0.1437388041 | S18: =N18/N21 -> 0.1628995201
A19: SEASONAL CUSTOMERS | C19: 58.75 | D19: 0.1703 | E19: 0 | G19: 2960.185852 | H19: 5439364.928 | I19: 0 | K19: =G19*C19*12 -> 2086931.026 | L19: 926323.8473 | M19: 0 | N19: =SUM(K19,L19,M19) -> 3013254.873 | P19: =IF(ISERROR(K19/N21),0,K19/N21) -> 0.08035897742 | Q19: =IF(ISERROR(L19/N21),0,L19/N21) -> 0.03566885355 | R19: =IF(ISERROR(M19/N21),0,M19/N21) -> 0 | S19: =N19/N21 -> 0.116027831
A20: STREET LIGHTING | C20: 1.37 | D20: 0.3279 | E20: 0 | G20: 1117.083333 | H20: 595435.1142 | I20: 0 | K20: =G20*C20*12 -> 18364.85 | L20: 195243.1739 | M20: 0 | N20: =SUM(K20,L20,M20) -> 213608.0239 | P20: =IF(ISERROR(K20/N21),0,K20/N21) -> 0.000707153494 | Q20: =IF(ISERROR(L20/N21),0,L20/N21) -> 0.007517997295 | R20: =IF(ISERROR(M20/N21),0,M20/N21) -> 0 | S20: =N20/N21 -> 0.008225150789
A21: Total | K21: =SUM(K17:K20) -> 14474387.25 | L21: =SUM(L17:L20) -> 7762805.325 | M21: =SUM(M17:M20) -> 3732911.735 | N21: =SUM(N17:N20) -> 25970104.31 | S21: =SUM(S17:S20) -> 1

Sheet 8. Current Revenue - HID (hidden)
A12: ="Calculation of Most Recent Revenue. Enter values into green shaded cells (" & '1. Information Sheet'!#REF! & ")" -> 
A15: Rate Class | C15: Current Base Service Charge | D15: Current Base Distribution Volumetric Rate kWh | E15: Current Base Distribution Volumetric Rate kW | G15: Re-based Billed Customers or Connections | H15: Re-based Billed kWh | I15: Re-based Billed kW | K15: Current Base Service Charge Revenue | L15: Current Base Distribution Volumetric Rate kWh Revenue | M15: Current Base Distribution Volumetric Rate kW Revenue | N15: Total Current Base Revenue | P15: Service Charge % Total Revenue | Q15: Distribution Volumetric Rate % Total Revenue | R15: Distribution Volumetric Rate % Total Revenue | S15: Total % Revenue
C16: A | D16: B | E16: C | G16: D | H16: E | I16: F | K16: G = A * D *12 | L16: H = B * E | M16: I = C * F | N16: J = G + H + I | P16: K = G / J | Q16: L = H / J | R16: M = I / J | S16: N = J / R
A17: RESIDENTIAL R1 | C17: 108.56 | D17: 0.0639 | E17: 0
A18: RESIDENTIAL R2 | C18: 1111.6 | D18: 0 | E18: 18.9718
A19: SEASONAL CUSTOMERS | C19: 54.75 | D19: 0.1964 | E19: 0
A20: STREET LIGHTING | C20: 1.39 | D20: 0.3316 | E20: 0

Sheet 9. Threshold Test
A8: No Input Required.
C9: =IF('1. Information Sheet'!F26 = "COS", "Preliminary Materiality Threshold Calculation", "Final Materiality Threshold Calculation") -> Final Materiality Threshold Calculation
C13: Cost of Service Rebasing Year | E13: =IF('1. Information Sheet'!F26="COS",'1. Information Sheet'!K26,'1. Information Sheet'!F34) -> 2019
C14: Price Cap IR Year in which Application is made | E14: =IF('1. Information Sheet'!F26="CoS", "COS",'1. Information Sheet'!F28) -> 2
C16: Price Cap Index | E16: ='1. Information Sheet'!F40-0.3% -> 0.012
C17: Growth Factor Calculation
C18: ='1. Information Sheet'!F48 -> Revenues Based on 2019 Board-Approved Distribution Demand | E18: 25970104.31
C19: ='1. Information Sheet'!F49 -> Revenues Based on 2018 Actual Distribution Demand | E19: 25794047.1
C20: Growth Factor | E20: =IF(ISERROR(E18/E19-1),0,(E18/E19-1)/('1. Information Sheet'!I48-'1. Information Sheet'!I49)) -> 0.006825497751
C21: Dead Band | E21: 0.1
C22: Average Net Fixed Assets
C23: Gross Fixed Assets Opening | E23: ='6. Rev_Requ_Check'!C10 -> 192209609.7
C24: Add: CWIP Opening | E24: ='6. Rev_Requ_Check'!C11 -> 1856895.45
C25: Capital Additions | E25: ='6. Rev_Requ_Check'!C12 -> 8485738.06
C26: Capital Disposals | E26: ='6. Rev_Requ_Check'!C13 -> 0
C27: Capital Retirements | E27: ='6. Rev_Requ_Check'!C14 -> 0
C28: Deduct: CWIP Closing | E28: ='6. Rev_Requ_Check'!C15 -> -1856895.45
C29: Gross Fixed Assets - Closing | E29: ='6. Rev_Requ_Check'!C16 -> 200695347.7
C31: Average Gross Fixed Assets | E31: =(E23+E29)/2 -> 196452478.7
C33: Accumulated Depreciation - Opening | E33: ='6. Rev_Requ_Check'!C19 -> 76945669.37
C34: Depreciation Expense | E34: ='6. Rev_Requ_Check'!C20 -> 4497643
C35: Disposals | E35: ='6. Rev_Requ_Check'!C21 -> 0
C36: Retirements | E36: ='6. Rev_Requ_Check'!C22 -> 0
C37: Accumulated Depreciation - Closing | E37: ='6. Rev_Requ_Check'!C23 -> 81443312.37
C39: Average Accumulated Depreciation | E39: =(E33+E37)/2 -> 79194490.87
C41: Average Net Fixed Assets | E41: =E31-E39 -> 117257987.8
C44: Working Capital Allowance
C45: Working Capital Allowance Base | E45: ='6. Rev_Requ_Check'!C29 -> 34872666.71
C46: Working Capital Allowance Rate | E46: ='6. Rev_Requ_Check'!C30 -> 0.075
C47: Working Capital Allowance | E47: =E45*E46 -> 2615450.004
C49: Rate Base | E49: =E41+E47 -> 119873437.8
C51: Depreciation | E51: =E34 -> 4497643
C53: Threshold Value (varies by Price Cap IR Year subsequent to CoS rebasing)
C54: =CONCATENATE(" Price Cap IR Year ",E13+1) -> Price Cap IR Year 2020 | E54: =IF(ISERROR(1+((RB/d)*(g+PCI*(1+g)))*((1+g)*(1+PCI))^(1-1) + 10%), 0, 1+((RB/d)*(g+PCI*(1+g)))*((1+g)*(1+PCI))^(1-1) + 10%) -> 1.60392961
C55: =CONCATENATE(" Price Cap IR Year ",E13+2) -> Price Cap IR Year 2021 | E55: =IF(ISERROR(1+((RB/d)*(g+PCI*(1+g)))*((1+g)*(1+PCI))^(2-1) + 10%), 0, 1+((RB/d)*(g+PCI*(1+g)))*((1+g)*(1+PCI))^(2-1) + 10%) -> 1.613457611
C56: =CONCATENATE(" Price Cap IR Year ",E13+3) -> Price Cap IR Year 2022 | E56: =IF(ISERROR(1+((RB/d)*(g+PCI*(1+g)))*((1+g)*(1+PCI))^(3-1) + 10%), 0, 1+((RB/d)*(g+PCI*(1+g)))*((1+g)*(1+PCI))^(3-1) + 10%) -> 1.623165761
C57: =CONCATENATE(" Price Cap IR Year ",E13+4) -> Price Cap IR Year 2023 | E57: =IF(ISERROR(1+((RB/d)*(g+PCI*(1+g)))*((1+g)*(1+PCI))^(4-1) + 10%), 0, 1+((RB/d)*(g+PCI*(1+g)))*((1+g)*(1+PCI))^(4-1) + 10%) -> 1.633057468
C58: =CONCATENATE(" Price Cap IR Year ",E13+5) -> Price Cap IR Year 2024 | E58: =IF(ISERROR(1+((RB/d)*(g+PCI*(1+g)))*((1+g)*(1+PCI))^(5-1) + 10%), 0, 1+((RB/d)*(g+PCI*(1+g)))*((1+g)*(1+PCI))^(5-1) + 10%) -> 1.6431362
C59: =CONCATENATE(" Price Cap IR Year ",E13+6) -> Price Cap IR Year 2025 | E59: =IF(ISERROR(1+((RB/d)*(g+PCI*(1+g)))*((1+g)*(1+PCI))^(6-1) + 10%), 0, 1+((RB/d)*(g+PCI*(1+g)))*((1+g)*(1+PCI))^(6-1) + 10%) -> 1.653405496
C60: =CONCATENATE(" Price Cap IR Year ",E13+7) -> Price Cap IR Year 2026 | E60: =IF(ISERROR(1+((RB/d)*(g+PCI*(1+g)))*((1+g)*(1+PCI))^(7-1) + 10%), 0, 1+((RB/d)*(g+PCI*(1+g)))*((1+g)*(1+PCI))^(7-1) + 10%) -> 1.663868957
C61: =CONCATENATE(" Price Cap IR Year ",E13+8) -> Price Cap IR Year 2027 | E61: =IF(ISERROR(1+((RB/d)*(g+PCI*(1+g)))*((1+g)*(1+PCI))^(8-1) + 10%), 0, 1+((RB/d)*(g+PCI*(1+g)))*((1+g)*(1+PCI))^(8-1) + 10%) -> 1.674530255
C62: =CONCATENATE(" Price Cap IR Year ",E13+9) -> Price Cap IR Year 2028 | E62: =IF(ISERROR(1+((RB/d)*(g+PCI*(1+g)))*((1+g)*(1+PCI))^(9-1) + 10%), 0, 1+((RB/d)*(g+PCI*(1+g)))*((1+g)*(1+PCI))^(9-1) + 10%) -> 1.68539313
C63: =CONCATENATE(" Price Cap IR Year ",E13+10) -> Price Cap IR Year 2029 | E63: =IF(ISERROR(1+((RB/d)*(g+PCI*(1+g)))*((1+g)*(1+PCI))^(10-1) + 10%), 0, 1+((RB/d)*(g+PCI*(1+g)))*((1+g)*(1+PCI))^(10-1) + 10%) -> 1.696461395
C65: Threshold CAPEX
C66: =C54 -> Price Cap IR Year 2020 | E66: =IF(ISERROR(d*E54), "", d*E54) -> 7213902.785
C67: =C55 -> Price Cap IR Year 2021 | E67: 7256756.33
C68: =C56 -> Price Cap IR Year 2022 | E68: 7300420.125
C69: =C57 -> Price Cap IR Year 2023 | E69: 7344909.488
C70: =C58 -> Price Cap IR Year 2024 | E70: 7390240.03
C71: Price Cap IR Year 2025 | E71: 7436427.654
C72: Price Cap IR Year 2026 | E72: 7483488.567
C73: Price Cap IR Year 2027 | E73: 7531439.28
C74: Price Cap IR Year 2028 | E74: 7580296.615
C75: Price Cap IR Year 2029 | E75: 7630077.717
B77: Note 1: | C77: The growth factor g is annualized, depending on the number of years between the numerator and denominator for the calculation. Typically, for ACM review in a cost of service and in the fourth year of Price Cap IR, the ratio is divided by 2 to annualize it. No division is normally required for the first three years under Price Cap IR.

Sheet 24. hidden (hidden)
A1: Rate Class | B1: MFC Adjustment from R/C Model | C1: DVR Adjustment from R/C Model

Sheet Sheet1 (hidden)

Sheet 10a. Proposed ACM Projects (hidden)
A11: Identify ALL Proposed ACM projects and related CAPEX costs in the relevant years
B13: Cost of Service | C13: Price Cap IR | G13: (if necessary)
B14: Test Year | C14: Year 1 | D14: Year 2 | E14: Year 3 | F14: Year 4 | G14: Year 5 | H14: Year 6 | I14: Year 7 | J14: Year 8 | K14: Year 9 | L14: Year 10
B15: ='1. Information Sheet'!K26 -> 2021 | C15: =B15+1 -> 2022 | D15: =C15+1 -> 2023 | E15: =D15+1 -> 2024 | F15: =E15+1 -> 2025 | G15: =F15+1 -> 2026 | H15: 2027 | I15: 2028 | J15: 2029 | K15: =J15+1 -> 2030 | L15: =K15+1 -> 2031
A16: Distribution System Plan CAPEX | B16: 8485738.56 | C16: 14779288.01 | D16: 21532503.85 | E16: 8938847.22 | F16: 6980595.587
A18: Materiality Threshold | C18: =IF('9. Threshold Test'!$E$66="", 0, '9. Threshold Test'!$E$66) -> 7213902.785 | D18: =IF('9. Threshold Test'!$E$67="", 0, '9. Threshold Test'!$E$67) -> 7256756.33 | E18: =IF('9. Threshold Test'!$E$68="", 0, '9. Threshold Test'!$E$68) -> 7300420.125 | F18: =IF('9. Threshold Test'!$E$69="", 0, '9. Threshold Test'!$E$69) -> 7344909.488 | G18: =IF('9. Threshold Test'!$E$70="", 0, '9. Threshold Test'!$E$70) -> 7390240.03 | H18: =IF('9. Threshold Test'!$E$71="", 0, '9. Threshold Test'!$E$71) -> 7436427.654 | I18: =IF('9. Threshold Test'!$E$72="", 0, '9. Threshold Test'!$E$72) -> 7483488.567 | J18: =IF('9. Threshold Test'!$E$73="", 0, '9. Threshold Test'!$E$73) -> 7531439.28 | K18: =IF('9. Threshold Test'!$E$74="", 0, '9. Threshold Test'!$E$74) -> 7580296.615 | L18: =IF('9. Threshold Test'!$E$75="", 0, '9. Threshold Test'!$E$75) -> 7630077.717
A20: Maximum Eligible Incremental Capital (Forecasted CAPEX less Threshold) | C20: =MAX(0,C16-C18) -> 7565385.222 | D20: =MAX(0,D16-D18) -> 14275747.52 | E20: =MAX(0,E16-E18) -> 1638427.095 | F20: =MAX(0,F16-F18) -> 0 | G20: =MAX(0,G16-G18) -> 0 | H20: 0 | I20: 0 | J20: 0 | K20: =MAX(0,K16-K18) -> 0 | L20: 0
A22: Maximum Eligible Incremental Capital (Forecasted Capex less Threshold) | C22: =IF(C18>C16,0,C16-C18) -> 7565385.222 | D22: =IF(D18>D16,0,D16-D18) -> 14275747.52 | E22: =IF(E18>E16,0,E16-E18) -> 1638427.095 | F22: =IF(F18>F16,0,F16-F18) -> 0 | G22: =IF(G18>G16,0,G16-G18) -> 0 | H22: 0 | I22: 0 | J22: 0 | K22: =IF(K18>K16,0,K16-K18) -> 0 | L22: 0
A24: Proposed Capital Projects Eligible for ACM treatment
B25: =B13 -> Cost of Service | C25: =C13 -> Price Cap IR | G25: (if necessary)
A26: Project Descriptions: | B26: Test Year | C26: Year 1 | D26: Year 2 | E26: Year 3 | F26: Year 4 | G26: Year 5 | H26: Year 6 | I26: Year 7 | J26: Year 8 | K26: Year 9 | L26: Year 10 | M26: Total
B27: =B15 -> 2021 | C27: =C15 -> 2022 | D27: =D15 -> 2023 | E27: =E15 -> 2024 | F27: =F15 -> 2025 | G27: =G15 -> 2026 | H27: 2027 | I27: 2028 | J27: 2029 | K27: =K15 -> 2030 | L27: 2031
A28: Echo River TS - Add Second Transformer | C28: 7500000 | M28: =SUM(C28:F28) -> 7500000
A29: Sault Facility Project | D29: 14118000 | M29: 14118000
M30: 0
M31: 0
M32: 0
M33: 0
M34: 0
M35: 0
M36: 0
M37: 0
M38: 0
M39: 0
M40: 0
M41: 0
M42: 0
M43: 0
M44: 0
M45: 0
M46: 0
M47: 0
A49: Total Cost of ACM Projects | C49: =SUM(C28:C47) -> 7500000 | D49: =SUM(D28:D47) -> 14118000 | E49: =SUM(E28:E47) -> 0 | F49: =SUM(F28:F47) -> 0 | G49: =SUM(G28:G47) -> 0 | H49: 0 | I49: 0 | J49: 0 | K49: 0 | L49: 0
A51: Maximum Allowed Incremental Capital | C51: =MIN(C49,C22) -> 7500000 | D51: 14118000 | E51: 0 | F51: 0 | G51: 0 | H51: 0 | I51: 0 | J51: 0 | K51: =MIN(K49,K22) -> 0 | L51: 0

Sheet 10b. Proposed ACM ICM Projects
A11: Identify ALL Proposed ACM projects and related CAPEX costs in the relevant years
C13: Cost of Service | D13: Price Cap IR | H13: Price Cap IR (Deferred Rebasing)
C14: Test Year | D14: Year 1 | E14: Year 2 | F14: Year 3 | G14: Year 4 | H14: Year 5 | I14: Year 6 | J14: Year 7 | K14: Year 8 | L14: Year 9 | M14: Year 10
C15: ='1. Information Sheet'!F34 -> 2019 | D15: =C15+1 -> 2020 | E15: =D15+1 -> 2021 | F15: =E15+1 -> 2022 | G15: =F15+1 -> 2023 | H15: =G15+1 -> 2024 | I15: 2025 | J15: 2026 | K15: 2027 | L15: =K15+1 -> 2028 | M15: =L15+1 -> 2029
A16: Distribution System Plan CAPEX | C16: 8485738.56 | D16: =14779288.0066664+D25 -> 14779288.01 | E16: =21532503.8533328-D25 -> 21532503.85 | F16: 8938847.22 | G16: 6980595.587
A18: Materiality Threshold | D18: =IF('9. Threshold Test'!$E$66="", 0, '9. Threshold Test'!$E$66) -> 7213902.785 | E18: =IF('9. Threshold Test'!$E$67="", 0, '9. Threshold Test'!$E$67) -> 7256756.33 | F18: =IF('9. Threshold Test'!$E$68="", 0, '9. Threshold Test'!$E$68) -> 7300420.125 | G18: =IF('9. Threshold Test'!$E$69="", 0, '9. Threshold Test'!$E$69) -> 7344909.488 | H18: =IF('9. Threshold Test'!$E$70="", 0, '9. Threshold Test'!$E$70) -> 7390240.03 | I18: =IF('9. Threshold Test'!$E$71="", 0, '9. Threshold Test'!$E$71) -> 7436427.654 | J18: =IF('9. Threshold Test'!$E$72="", 0, '9. Threshold Test'!$E$72) -> 7483488.567 | K18: =IF('9. Threshold Test'!$E$73="", 0, '9. Threshold Test'!$E$73) -> 7531439.28 | L18: =IF('9. Threshold Test'!$E$73="", 0, '9. Threshold Test'!$E$73) -> 7531439.28 | M18: =IF('9. Threshold Test'!$E$73="", 0, '9. Threshold Test'!$E$73) -> 7531439.28
A20: Maximum Eligible Incremental Capital (Forecasted Capex less Threshold) | C20: 0 | D20: =IF(D18>D16,0,D16-D18) -> 7565385.222 | E20: =IF(E18>E16,0,E16-E18) -> 14275747.52 | F20: =IF(F18>F16,0,F16-F18) -> 1638427.095 | G20: =IF(G18>G16,0,G16-G18) -> 0 | H20: =IF(H18>H16,0,H16-H18) -> 0 | I20: 0 | J20: 0 | K20: 0 | L20: =IF(L18>L16,0,L16-L18) -> 0 | M20: 0
A22: Project Descriptions: | B22: Type | C22: Test Year | D22: Year 1 | E22: Year 2 | F22: Year 3 | G22: Year 4 | H22: Year 5 | I22: Year 6 | J22: Year 7 | K22: Year 8 | L22: Year 9 | M22: Year 10 | N22: Total
C23: =C15 -> 2019 | D23: =D15 -> 2020 | E23: =E15 -> 2021 | F23: =F15 -> 2022 | G23: =G15 -> 2023 | H23: =H15 -> 2024 | I23: 2025 | J23: 2026 | K23: 2027 | L23: =L15 -> 2028 | M23: 2029
A24: Echo River TS - Add Second Transformer | B24: Approved ACM | D24: 7500000 | N24: =SUM(D24:K24) -> 7500000
A25: Sault Facility Project | B25: Approved ACM | E25: 14118000 | N25: =SUM(D25:G25) -> 14118000
N26: 0
N27: 0
N28: 0
N29: 0
N30: 0
N31: 0
N32: 0
N33: 0
N34: 0
N35: 0
N36: 0
N37: 0
N38: 0
N39: 0
N40: 0
N41: 0
N42: 0
N43: 0
A45: Total Cost of ACM/ICM Projects | C45: 0 | D45: =SUM(D24:D43) -> 7500000 | E45: =SUM(E24:E43) -> 14118000 | F45: =SUM(F24:F43) -> 0 | G45: =SUM(G24:G43) -> 0 | H45: =SUM(H24:H43) -> 0 | I45: 0 | J45: 0 | K45: 0 | L45: =SUM(L24:L43) -> 0 | M45: 0 | N45: =SUM(D45:G45) -> 21618000
A47: Maximum Allowed Incremental Capital | D47: =MIN(D45,D20) -> 7500000 | E47: =MIN(E45,E20) -> 14118000 | F47: =MIN(F45,F20) -> 0 | G47: =MIN(G45,G20) -> 0 | H47: =MIN(H45,H20) -> 0 | I47: 0 | J47: 0 | K47: 0 | L47: =MIN(L45,L20) -> 0 | M47: 0 | N47: =SUM(D47:G47) -> 21618000
D49: Price Cap IR
C50: Test Year | D50: Year 1 | G50: Year 2 | J50: Year 3 | M50: Year 4
C51: =C15 -> 2019 | D51: =D15 -> 2020 | G51: =E15 -> 2021 | J51: =F15 -> 2022 | M51: =G15 -> 2023
A52: Distribution System Plan CAPEX | C52: =C16 -> 8485738.56 | D52: =D16 -> 14779288.01 | G52: =E16 -> 21532503.85 | J52: =F16 -> 8938847.22 | M52: =G16 -> 6980595.587
A54: Materiality Threshold | D54: =D18 -> 7213902.785 | G54: =E18 -> 7256756.33 | J54: =F18 -> 7300420.125 | M54: =G18 -> 7344909.488
A56: Maximum Eligible Incremental Capital (Forecasted Capex less Threshold) | C56: 0 | D56: =D20 -> 7565385.222 | G56: =E20 -> 14275747.52 | J56: =F20 -> 1638427.095 | M56: =G20 -> 0
C58: Test Year | D58: Year 1 | G58: Year 2 | J58: Year 3 | M58: Year 4
C59: =C15 -> 2019 | D59: =D51 -> 2020 | G59: =G51 -> 2021 | J59: =J51 -> 2022 | M59: =M51 -> 2023
A60: Project Descriptions: | B60: Type | D60: Proposed ACM/ICM | E60: Amortization Expense | F60: CCA | G60: Proposed ACM/ICM | H60: Amortization Expense | I60: CCA | J60: Proposed ACM/ICM | K60: Amortization Expense | L60: CCA | M60: Proposed ACM/ICM | N60: Amortization Expense | O60: CCA
A61: =IF(OR(A24="", A24=0), "", A24) -> Echo River TS - Add Second Transformer | B61: Approved ACM | D61: =IF(OR(D24="", D24=0), 0, D24) -> 7500000 | E61: =0.025*D61 -> 187500 | F61: =D61*0.08 -> 600000 | G61: =IF(OR(E24="", E24=0), 0, E24) -> 0 | J61: =IF(OR(F24="", F24=0), 0, F24) -> 0 | M61: =IF(OR(G24="", G24=0), 0, G24) -> 0
A62: Sault Facility Project | B62: Approved ACM | D62: =IF(OR(D25="", D25=0), 0, D25) -> 0 | E62: =0.02*D62 -> 0 | F62: =D62*0.08 -> 0 | G62: 14118000 | J62: 0 | M62: 0
D63: 0 | G63: 0 | J63: 0 | M63: 0
D64: 0 | G64: 0 | J64: 0 | M64: 0
D65: 0 | G65: 0 | J65: 0 | M65: 0
D66: 0 | G66: 0 | J66: 0 | M66: 0
D67: 0 | G67: 0 | J67: 0 | M67: 0
D68: 0 | G68: 0 | J68: 0 | M68: 0
D69: 0 | G69: 0 | J69: 0 | M69: 0
D70: 0 | G70: 0 | J70: 0 | M70: 0
D71: 0 | G71: 0 | J71: 0 | M71: 0
D72: 0 | G72: 0 | J72: 0 | M72: 0
D73: 0 | G73: 0 | J73: 0 | M73: 0
D74: 0 | G74: 0 | J74: 0 | M74: 0
D75: 0 | G75: 0 | J75: 0 | M75: 0
D76: 0 | G76: 0 | J76: 0 | M76: 0
D77: 0 | G77: 0 | J77: 0 | M77: 0
D78: 0 | G78: 0 | J78: 0 | M78: 0
D79: 0 | G79: 0 | J79: 0 | M79: 0
D80: 0 | G80: 0 | J80: 0 | M80: 0
A82: Total Cost of ACM/ICM Projects | D82: =SUM(D61:D80) -> 7500000 | E82: =SUM(E61:E80) -> 187500 | F82: 600000 | G82: 14118000 | H82: 0 | I82: 0 | J82: 0 | K82: 0 | L82: 0 | M82: 0 | N82: 0 | O82: 0
C84: =CONCATENATE(H13," (if necessary)") -> Price Cap IR (Deferred Rebasing) (if necessary)
D86: Price Cap IR
D87: Year 5 | G87: Year 6 | J87: Year 7 | M87: Year 8
D88: =H15 -> 2024 | G88: =I15 -> 2025 | J88: =J15 -> 2026 | M88: =K15 -> 2027
A89: Distribution System Plan CAPEX | D89: =H16 -> 0 | G89: =I16 -> 0 | J89: =J16 -> 0 | M89: =K16 -> 0
A91: Materiality Threshold | D91: =H18 -> 7390240.03 | G91: =I18 -> 7436427.654 | J91: =J18 -> 7483488.567 | M91: =K18 -> 7531439.28
A93: Maximum Eligible Incremental Capital (Forecasted Capex less Threshold) | C93: 0 | D93: =H20 -> 0 | G93: =I20 -> 0 | J93: =J20 -> 0 | M93: =K20 -> 0
D95: =D87 -> Year 5 | G95: =G87 -> Year 6 | J95: =J87 -> Year 7 | M95: =M87 -> Year 8
D96: =D88 -> 2024 | G96: =G88 -> 2025 | J96: =J88 -> 2026 | M96: =M88 -> 2027
A97: Project Descriptions: | B97: Type | D97: Proposed ACM/ICM | E97: Amortization Expense | F97: CCA | G97: Proposed ACM/ICM | H97: Amortization Expense | I97: CCA | J97: Proposed ACM/ICM | K97: Amortization Expense | L97: CCA | M97: Proposed ACM/ICM | N97: Amortization Expense | O97: CCA
A98: =IF(OR(A61="", A61=0), "", A61) -> Echo River TS - Add Second Transformer | B98: =IF(OR(B24="", B24=0), "", B24) -> Approved ACM | D98: =IF(OR(H24="", H24=0), 0,H24) -> 0 | G98: =IF(OR(I24="", I24=0), 0,I24) -> 0 | H98: =0.1*G98 -> 0 | J98: =IF(OR(J24="", J24=0), 0,J24) -> 0 | M98: =IF(OR(K24="", K24=0), 0,K24) -> 0
A99: Sault Facility Project | B99: Approved ACM | D99: 0 | G99: 0 | H99: =0.1*G99 -> 0 | J99: =IF(OR(J25="", J25=0), 0,J25) -> 0 | M99: =IF(OR(K25="", K25=0), 0,K25) -> 0
D100: 0 | G100: 0 | J100: 0 | M100: 0
D101: 0 | G101: 0 | J101: 0 | M101: 0
D102: 0 | G102: 0 | J102: 0 | M102: 0
D103: 0 | G103: 0 | J103: 0 | M103: 0
D104: 0 | G104: 0 | J104: 0 | M104: 0
D105: 0 | G105: 0 | J105: 0 | M105: 0
D106: 0 | G106: 0 | J106: 0 | M106: 0
D107: 0 | G107: 0 | J107: 0 | M107: 0
D108: 0 | G108: 0 | J108: 0 | M108: 0
D109: 0 | G109: 0 | J109: 0 | M109: 0
D110: 0 | G110: 0 | J110: 0 | M110: 0
D111: 0 | G111: 0 | J111: 0 | M111: 0
D112: 0 | G112: 0 | J112: 0 | M112: 0
D113: 0 | G113: 0 | J113: 0 | M113: 0
D114: 0 | G114: 0 | J114: 0 | M114: 0
D115: 0 | G115: 0 | J115: 0 | M115: 0
B116: =IF(OR(B42="", B42=0), "", B42) ->  | D116: =IF(OR(H42="", H42=0), 0,H42) -> 0 | G116: =IF(OR(I42="", I42=0), 0,I42) -> 0 | J116: 0 | M116: 0
A117: =IF(OR(A79="", A79=0), "", A79) ->  | D117: 0 | G117: 0 | J117: 0 | M117: 0
A119: Total Cost of ACM/ICM Projects | D119: =SUM(D98:D117) -> 0 | E119: 0 | F119: 0 | G119: 0 | H119: 0 | I119: 0 | J119: 0 | K119: 0 | L119: 0 | M119: 0 | N119: 0 | O119: 0
C121: =C84 -> Price Cap IR (Deferred Rebasing) (if necessary)
D123: Price Cap IR
D124: Year 9 | G124: Year 10
D125: =L15 -> 2028 | G125: =M15 -> 2029
A126: Distribution System Plan CAPEX | D126: =L16 -> 0 | G126: =M16 -> 0
A128: Materiality Threshold | D128: =L18 -> 7531439.28 | G128: =M18 -> 7531439.28
A130: Maximum Eligible Incremental Capital (Forecasted Capex less Threshold) | C130: 0 | D130: =L20 -> 0 | G130: =M20 -> 0
D132: =D124 -> Year 9 | G132: =G124 -> Year 10
D133: =D125 -> 2028 | G133: =G125 -> 2029
A134: Project Descriptions: | B134: Type | D134: Proposed ACM/ICM | E134: Amortization Expense | F134: CCA | G134: Proposed ACM/ICM | H134: Amortization Expense | I134: CCA
A135: =IF(OR(A98="", A98=0), "", A98) -> Echo River TS - Add Second Transformer | B135: =IF(OR(B61="", B61=0), "", B61) -> Approved ACM | D135: =IF(OR(L24="", L24=0), 0,L24) -> 0 | G135: =IF(OR(M24="", M24=0), 0,M24) -> 0
A136: Sault Facility Project | B136: Approved ACM | D136: =IF(OR(L25="", L25=0), 0,L25) -> 0 | G136: =IF(OR(M25="", M25=0), 0,M25) -> 0
D137: 0 | G137: 0
D138: 0 | G138: 0
D139: 0 | G139: 0
D140: 0 | G140: 0
D141: 0 | G141: 0
D142: 0 | G142: 0
D143: 0 | G143: 0
D144: 0 | G144: 0
D145: 0 | G145: 0
D146: 0 | G146: 0
D147: 0 | G147: 0
D148: 0 | G148: 0
D149: 0 | G149: 0
D150: 0 | G150: 0
D151: 0 | G151: 0
D152: 0 | G152: 0
D153: 0 | G153: 0
A154: =IF(OR(A116="", A116=0), "", A116) ->  | D154: 0 | G154: 0
A156: Total Cost ofACM/ICM Projects | D156: =SUM(D135:D154) -> 0 | E156: 0 | F156: 0 | G156: 0 | H156: 0 | I156: 0

Sheet 11. Incremental Capital Adj.
B12: Incremental Capital Adjustment | C12: Rate Year: | E12: ='1. Information Sheet'!K26 -> 2021
B16: Current Revenue Requirement
B18: Current Revenue Requirement - Total | E18: ='6. Rev_Requ_Check'!E62 -> 25972335.17 | F18: A
B21: Eligible Incremental Capital for ACM/ICM Recovery
C22: Total Claim | E22: Eligible for ACM/ICM
E23: (Prorated Amount)
C24: (from Sheet 10b)
B25: Amount of Capital Projects Claimed | C25: =IF('1. Information Sheet'!$F$26="COS", 0, IF("Year " & '1. Information Sheet'!$F$28="Year 1", '10b. Proposed ACM ICM Projects'!$D$82, IF("Year " & '1. Information Sheet'!$F$28="Year 2", '10b. Proposed ACM ICM Projects'!$G$82, IF("Year " & '1. Information Sheet'!$F$28="Year 3", '10b. Proposed ACM ICM Projects'!$J$82, IF("Year " & '1. Information Sheet'!$F$28="Year 4", '10b. Proposed ACM ICM Projects'!$M$82, IF("Year " & '1. Information Sheet'!$F$28="Year 5", '10b. Proposed ACM ICM Projects'!$D$119, IF("Year " & '1. Information Sheet'!$F$28="Year 6", '10b. Proposed ACM ICM Projects'!$G$119, IF("Year " & '1. Information Sheet'!$F$28="Year 7", '10b. Proposed ACM ICM Projects'!$J$119, IF("Year " & '1. Information Sheet'!$F$28="Year 8", '10b. Proposed ACM ICM Projects'!$M$119, IF("Year " & '1. Information Sheet'!$F$28="Year 9", '10b. Proposed ACM ICM Projects'!$D$156, IF("Year " & '1. Information Sheet'!$F$28="Year 10", '10b. Proposed ACM ICM Projects'!$G$156, “”))))))))))) -> 14118000 | E25: =IF('1. Information Sheet'!$F$26="COS",0, VLOOKUP("Maximum Allowed Incremental Capital",'10b. Proposed ACM ICM Projects'!$A$14:$M$47,MATCH("Year " & '1. Information Sheet'!$F$28,'10b. Proposed ACM ICM Projects'!$A$14:$M$14,0),FALSE)) -> 14118000 | F25: B
B26: Depreciation Expense | C26: =IF('1. Information Sheet'!$F$26="COS", 0, IF("Year " & '1. Information Sheet'!$F$28="Year 1", '10b. Proposed ACM ICM Projects'!$E$82, IF("Year " & '1. Information Sheet'!$F$28="Year 2", '10b. Proposed ACM ICM Projects'!$H$82, IF("Year " & '1. Information Sheet'!$F$28="Year 3", '10b. Proposed ACM ICM Projects'!$K$82, IF("Year " & '1. Information Sheet'!$F$28="Year 4", '10b. Proposed ACM ICM Projects'!$N$82, IF("Year " & '1. Information Sheet'!$F$28="Year 5", '10b. Proposed ACM ICM Projects'!$E$119, IF("Year " & '1. Information Sheet'!$F$28="Year 6", '10b. Proposed ACM ICM Projects'!$H$119, IF("Year " & '1. Information Sheet'!$F$28="Year 7", '10b. Proposed ACM ICM Projects'!$K$119, IF("Year " & '1. Information Sheet'!$F$28="Year 8", '10b. Proposed ACM ICM Projects'!$N$119, IF("Year " & '1. Information Sheet'!$F$28="Year 9", '10b. Proposed ACM ICM Projects'!$E$156, IF("Year " & '1. Information Sheet'!$F$28="Year 10", '10b. Proposed ACM ICM Projects'!$H$156, “”))))))))))) -> 0 | E26: =C26*(E25/C25) -> 0 | F26: C
B27: CCA | C27: =IF('1. Information Sheet'!$F$26="COS", 0, IF("Year " & '1. Information Sheet'!$F$28="Year 1", '10b. Proposed ACM ICM Projects'!$F$82, IF("Year " & '1. Information Sheet'!$F$28="Year 2", '10b. Proposed ACM ICM Projects'!$I$82, IF("Year " & '1. Information Sheet'!$F$28="Year 3", '10b. Proposed ACM ICM Projects'!$L$82, IF("Year " & '1. Information Sheet'!$F$28="Year 4", '10b. Proposed ACM ICM Projects'!$O$82, IF("Year " & '1. Information Sheet'!$F$28="Year 5", '10b. Proposed ACM ICM Projects'!$F$119, IF("Year " & '1. Information Sheet'!$F$28="Year 6", '10b. Proposed ACM ICM Projects'!$I$119, IF("Year " & '1. Information Sheet'!$F$28="Year 7", '10b. Proposed ACM ICM Projects'!$L$119, IF("Year " & '1. Information Sheet'!$F$28="Year 8", '10b. Proposed ACM ICM Projects'!$O$119, IF("Year " & '1. Information Sheet'!$F$28="Year 9", '10b. Proposed ACM ICM Projects'!$F$156, IF("Year " & '1. Information Sheet'!$F$28="Year 10", '10b. Proposed ACM ICM Projects'!$I$156, “”))))))))))) -> 0 | E27: =C27*(E25/C25) -> 0 | F27: V
B29: ACM/ICM Incremental Revenue Requirement Based on Eligible Amount in Rate Year
B31: Return on Rate Base
B32: Incremental Capital | E32: =E25 -> 14118000 | F32: B
B33: Depreciation Expense (prorated to Eligible Incremental Capital) | E33: =E26 -> 0 | F33: C
B34: Incremental Capital to be included in Rate Base (average NBV in year) | E34: =E32-E33/2 -> 14118000 | F34: D = B - C/2
C35: % of capital structure
B36: Deemed Short-Term Debt | C36: ='6. Rev_Requ_Check'!C36 -> 0.04 | D36: E | E36: =E34*C36 -> 564720 | F36: G = D * E
B37: Deemed Long-Term Debt | C37: ='6. Rev_Requ_Check'!C37 -> 0.56 | D37: F | E37: =E34*C37 -> 7906080 | F37: H = D * F
C38: Rate (%)
B39: Short-Term Interest | C39: ='6. Rev_Requ_Check'!C40 -> 0.0282 | D39: I | E39: =E36*C39 -> 15925.104 | F39: K = G * I
B40: Long-Term Interest | C40: ='6. Rev_Requ_Check'!C41 -> 0.0495 | D40: J | E40: =E37*C40 -> 391350.96 | F40: L = H * J
B42: Return on Rate Base - Interest | E42: =SUM(E39:E40) -> 407276.064 | F42: M = K + L
C44: =C35 -> % of capital structure
B45: Deemed Equity % | C45: ='6. Rev_Requ_Check'!C38 -> 0.4 | D45: N | E45: =E34*C45 -> 5647200 | F45: P = D * N
C46: =C38 -> Rate (%)
B47: Return on Rate Base -Equity | C47: ='6. Rev_Requ_Check'!C42 -> 0.0898 | D47: O | E47: =E45*C47 -> 507118.56 | F47: Q = P * O
B49: Return on Rate Base - Total | E49: =E42+E47 -> 914394.624 | F49: R = M + Q
B53: Amortization Expense
B55: Amortization Expense - Incremental | D55: C | E55: =E33 -> 0 | F55: S
B58: Grossed up Taxes/PILs
B60: Regulatory Taxable Income | D60: O | E60: =E47 -> 507118.56 | F60: T
B62: Add Back Amortization Expense (Prorated to Eligible Incremental Capital) | D62: S | E62: =E55 -> 0 | F62: U
B64: Deduct CCA (Prorated to Eligible Incremental Capital) | E64: =E27 -> 0 | F64: V
B66: Incremental Taxable Income | E66: =E60+E62-E64 -> 507118.56 | F66: W = T + U - V
B68: Current Tax Rate | C68: 0.265 | D68: X
B70: Taxes/PILs Before Gross Up | E70: =E66*C68 -> 134386.4184 | F70: Y = W * X
B72: Grossed-Up Taxes/PILs | E72: =E70/(1-C68) -> 182838.6645 | F72: Z = Y / ( 1 - X )
B75: Ontario Capital Tax
B76: Incremental Capital CAPEX | F76: AA
B78: Less : Available Capital Exemption (if any) | F78: AB
B80: Incremental Capital CAPEX subject to OCT | F80: AC = AA - AB
B82: Ontario Capital Tax Rate (F1.1 Z-Factor Tax Changes) | D82: AD
B84: Incremental Ontario Capital Tax | F84: AE = AC * AD
B87: Incremental Revenue Requirement
B88: Return on Rate Base - Total | D88: Q | E88: =E49 -> 914394.624 | F88: AA
B89: Amortization Expense - Total | D89: S | E89: =E55 -> 0 | F89: AB
B90: =B72 -> Grossed-Up Taxes/PILs | D90: Z | E90: =E72 -> 182838.6645 | F90: AC
B93: Incremental Revenue Requirement | E93: =SUM(E88:E90) -> 1097233.288 | F93: AD = AA + AB + AC

Sheet 12. Opt 1-Rate Rider Calc F & V
Z1: FALSE
Z2: FALSE
Z3: TRUE
A13: Calculation of incremental rate rider. Choose one of the 3 options:
A15: Rate Class | C15: Service Charge % Revenue | D15: Distribution Volumetric Rate % Revenue kWh | E15: Distribution Volumetric Rate % Revenue kW | F15: Service Charge Revenue | G15: Distribution Volumetric Rate Revenue kWh | H15: Distribution Volumetric Rate Revenue kW | I15: Total Revenue by Rate Class | K15: Billed Customers or Connections | L15: Billed kWh | M15: Billed kW | O15: Service Charge Rate Rider | P15: Distribution Volumetric Rate kWh Rate Rider | Q15: Distribution Volumetric Rate kW Rate Rider
C16: From Sheet 8 | D16: From Sheet 8 | E16: From Sheet 8 | F16: Col C * Col Itotal | G16: Col D* Col Itotal | H16: Col E* Col Itotal | I16: Col Itotal | K16: From Sheet 4 | L16: From Sheet 4 | M16: From Sheet 4 | O16: Col I / Col K / 12 | P16: Col I / Col L | Q16: Col I / Col M
A17: RESIDENTIAL R1 | C17: 0.4571212128 | D17: 0.2557262853 | E17: 0 | F17: 501568.61 | G17: 280591.39 | H17: 0 | I17: 782160 | K17: 9112.845106 | L17: 103931741.8 | M17: 0 | O17: 7.15 | P17: 0 | Q17: 0
A18: RESIDENTIAL R2 | C18: 0.01916071603 | D18: 0 | E18: 0.1437388041 | F18: 21023.78 | G18: 0 | H18: 157715 | I18: 178738.78 | K18: 37.28222026 | L18: 85867986.52 | M18: 196648.0919 | O18: 399.52 | P18: 0 | Q18: 0
A19: SEASONAL CUSTOMERS | C19: 0.08035897742 | D19: 0.03566885355 | E19: 0 | F19: 88172.55 | G19: 39137.05 | H19: 0 | I19: 127309.6 | K19: 2960.185852 | L19: 5439364.928 | M19: 0 | O19: 3.58 | P19: 0 | Q19: 0
A20: STREET LIGHTING | C20: 0.000707153494 | D20: 0.007517997295 | E20: 0 | F20: 775.91 | G20: 8249 | H20: 0 | I20: 9024.91 | K20: 1117.083333 | L20: 595435.1142 | M20: 0 | O20: 0.67 | P20: 0 | Q20: 0
A21: Total | C21: =SUM(C17:C20) -> 0.5573480597 | D21: 0.2989131362 | E21: 0.1437388041 | F21: 611540.85 | G21: 327977.44 | H21: 157715 | I21: 1097233.29 | K21: =SUM(K17:K20) -> 13227.39651 | L21: =SUM(L17:L20) -> 195834528.4 | M21: =SUM(M17:M20) -> 196648.0919
I22: 1097233.289
I23: From Sheet 11, E93
